{"text_format":"1","workbook":"xlsx","n_sheets":6,"sheets":["1 POM","2 POA","3 Disponibilidad Financiera","4 Anexo Distribución Financiera","6 Seguimiento 2026","5 Catálogo Productos 2026"],"not_rendered":{"charts":0,"images":11,"macros":1,"external_links":1,"defined_names":2,"comments":0,"pivot_tables":0},"unopened":[],"bounds":{"document_bytes":16777216,"sheet_cells":100000,"rows_first":2000,"rows_last":500,"rows_between":2000,"halvings":0,"cell_chars":16384,"cell_head_chars":4096},"cells_cut":0,"cells_raw":0,"read":"whole","date_system":"1900"}

{"sheet":"1 POM","index":0,"n_rows":19,"n_cols":53,"rows_kept":19,"cut":false,"hidden":false,"merged":[[4,13,4,18],[4,0,6,0],[4,19,4,22],[4,23,4,34],[4,35,4,52],[5,23,5,24],[5,35,6,35],[5,36,6,36],[5,38,5,40],[5,41,5,42],[5,43,5,44],[5,45,5,46],[5,47,5,48],[5,49,5,50],[5,51,5,52],[5,20,6,20],[5,21,6,21],[5,17,6,17],[5,1,6,1],[5,8,6,8],[5,9,6,9],[5,10,6,10],[5,11,6,11],[5,12,6,12],[5,7,6,7],[4,2,6,2],[4,3,6,3],[4,4,6,4],[4,5,6,5],[4,6,6,6],[4,7,4,9],[4,11,4,12],[5,13,6,13],[3,0,3,6],[3,7,3,10],[3,11,3,52],[5,37,6,37],[5,31,5,32],[5,33,5,34],[5,18,6,18],[5,19,6,19],[5,22,6,22],[5,29,5,30],[5,25,5,26],[5,27,5,28],[5,14,6,14],[5,15,6,15],[5,16,6,16]]}
[null,null,"OPCIONES:"]
["Departamento:",null,null,"Chimaltenango","Chimaltenango"]
["Municipio:",null,null,"Chimaltenango","Chimaltenango","Chimaltenango","Chimaltenango"]
["VINCULACIÓN ESTRATÉGICA",null,null,null,null,null,null,"PLANIFICACIÓN ESTRATÉGICA",null,null,null,"PLANIFICACIÓN OPERATIVA MULTIANUAL"]
["No. de Vinculación","1. PDM-OT","2) Eje K'atun","3) Prioridades Nacionales de Desarrollo","4) Metas Estratégicas de Desarrollo (MED)","5) Resultados Estratégicos  (RE)","6) Resultado Institucional (RI)","7) Resultado Municipal ",null,null,"8) Política General de Gobierno 2024-2028","9) Programa Presupuestario",null,"10) Producto",null,null,null,null,null,"11. INTERVENCIONES (PROYECTOS O ACTIVIDADES)",null,null,null,"12. Programación multianual de productos e  intervenciones",null,null,null,null,null,null,null,null,null,null,null,"13. Indicadores de Productos "]
[null,"1) Problemática/Potencialidad PDM-OT",null,null,null,null,null,"7.1 Resultado PDM_OT al 2032","7.2 Programa PDM \n(en caso no tenga PDM _OT aprobado)","7.3 Resultado PEI definido para el periodo 2026 - 2030","8.1 Eje de la PGG ","9.1 Programa Presupuestario","9.2 Subprograma","10.1 Nombre del Producto","10.2 Producto Competencia Propia","10.3 Producto Competencia delegada","10.4 Unidad de Medida","10.5 Responsable del cumplimiento de meta del producto","10.6 Corresponsable del cumplimiento de la meta del producto","11.1 Nombre de la intervención (proyecto o actividad)","11.2 Código SNIP","11.3 Código SMIP","11.4 Unidad de Medida",2026,null,2027,null,2028,null,2029,null,2030,null,"Total multianual",null,"Nombre del indicador de  producto","Fórmula del Indicador de producto","Segmento afectado por la problemática","Línea base",null,null,2026,null,2027,null,2028,null,2029,null,2030,null,"Meta del período"]
[null,null,null,null,null,null,null,null,null,null,null,null,null,null,null,null,null,null,null,null,null,null,null,"12.1 Física","12.2 Financiera Quetzales","12.3 Física","12.4 Financiera Quetzales","12.5 Física","12.6 Financiera Quetzales","12.7 Física","12.8 Financiera Quetzales","12.9 Física","12.10 Financiera Quetzales","12.11 Total Meta Física Multianual","12.12 Total Meta  financiera Multianual",null,null,null,"Año","Datos Absolutos","Datos Relativos ","Datos Absolutos","Datos relativos en porcentaje ","Datos Absolutos","Datos relativos en porcentaje ","Datos Absolutos","Datos relativos en porcentaje ","Datos Absolutos","Datos relativos en porcentaje ","Datos Absolutos","Datos relativos en porcentaje ","Datos Absolutos","Datos relativos en porcentaje "]
["No. DE VINCULACIÓN","1) Problemática/Potencialidad PDM-OT","2) Eje K'atun","3) Prioridades Nacionales de Desarrollo","4) Metas Estratégicas de Desarrollo (MED)","5) Resultados Estratégicos  (RE)","6) Resultado Institucional -RI-","7.1 Resultado PDM_OT al 2032","7.2 Programa PDM \n(en caso no tenga PDM - OT aprobado)","7.3 Resultado PEI definido para el periodo 2026 - 2030","Eje de la PGG ","9.1 Programa Presupuestario","9.2 Subprograma","Columna1","10.1 Producto Competencia Propia","10.2 Producto Competencia delegada","10.3 Unidad de Medida","10.4 Responsable del cumplimiento de meta del producto","10.5 Corresponsable del cumplimiento de la meta del producto","11.1 Nombre de la intervención (proyecto o actividad)","11.2 Código SNIP","11.3 Código SMIP","11.4 Unidad de Medida","Física 2026","Financiera 2026","Física 2027","Financiera 2027","Física 2028","Financiera 2028","Física 2029","Financiera 2029","Física 2030","Financiera 2030","12.2 Total Meta Física Multianual","12.3 Total Meta  financiera Multianual","Nombre del indicador de  producto","Fórmula del Indicador de producto","Población objertivo del producto","Año","Datos Absolutos","Datos Relativos ","Datos Absolutos 2026","Datos relativos en porcentaje 2026","Datos Absolutos 2027","Datos relativos en porcentaje 2027","Datos Absolutos 2028","Datos relativos en porcentaje 2028","Datos Absolutos 2029","Datos relativos en porcentaje 2029","Datos Absolutos 2030","Datos relativos en porcentaje 2030","Datos Absolutos MP","Datos relativos en porcentaje MP"]
[null,null,{"$f":"IFERROR(VLOOKUP(A9,'5 Catálogo Productos 2026'!$A$8:$V$116,2,),\"\")","v":""},{"$f":"IFERROR(VLOOKUP(A9,'5 Catálogo Productos 2026'!$A$8:$V$116,4,),\"\")","v":""},{"$f":"IFERROR(VLOOKUP(A9,'5 Catálogo Productos 2026'!$A$8:$V$116,5,),\"\")","v":""},{"$f":"IFERROR(VLOOKUP(A9,'5 Catálogo Productos 2026'!$A$8:$V$116,6,),\"\")","v":""},{"$f":"IFERROR(VLOOKUP(A9,'5 Catálogo Productos 2026'!$A$8:$V$116,7,FALSE),\"\")","v":""},null,null,null,{"$f":"IFERROR(VLOOKUP(A9,'5 Catálogo Productos 2026'!$A$8:$V$116,10,),\"\")","v":""},{"$f":"IFERROR(VLOOKUP(A9,'5 Catálogo Productos 2026'!$A$8:$V$116,19,),\"\")","v":""},{"$f":"IFERROR(VLOOKUP(A9,'5 Catálogo Productos 2026'!$A$8:$V$116,21,),\"\")","v":""},{"$f":"IFERROR(VLOOKUP(A9,'5 Catálogo Productos 2026'!$A$8:$V$116,11,),\"\")","v":""},{"$f":"IFERROR(VLOOKUP(A9,'5 Catálogo Productos 2026'!$A$8:$V$116,13,),\"\")","v":""},{"$f":"IFERROR(VLOOKUP(A9,'5 Catálogo Productos 2026'!$A$8:$V$116,14,),\"\")","v":""},{"$f":"IFERROR(VLOOKUP(A9,'5 Catálogo Productos 2026'!$A$8:$V$116,12,),\"\")","v":""},{"$f":"IFERROR(VLOOKUP(A9,'5 Catálogo Productos 2026'!$A$8:$V$116,16,),\"\")","v":""},{"$f":"IFERROR(VLOOKUP(A9,'5 Catálogo Productos 2026'!$A$8:$V$116,17,),\"\")","v":""},null,null,null,null,null,{"$f":"SUM(Y10:Y19)","v":0},null,{"$f":"SUM(AA10:AA19)","v":0},null,{"$f":"SUM(AC10:AC19)","v":0},null,{"$f":"SUM(AE10:AE19)","v":0},null,{"$f":"SUM(AG10:AG19)","v":0},{"$f":"X9+Z9+AB9+AD9+AF9","v":0},{"$f":"Y9+AA9+AC9+AE9+AG9","v":0},null,null,null,null,null,null,null,null,null,null,null,null,null,null,null,null,{"$f":"AP9+AR9+AT9+AV9+AX9","v":0}]
[null,null,null,null,null,null,null,null,null,null,null,null,null,null,null,null,null,null,null,null,null,null,null,null,null,null,null,null,null,null,null,null,null,{"$f":"X10+Z10+AB10+AD10+AF10","v":0},{"$f":"Y10+AA10+AC10+AE10+AG10","v":0}]
[null,null,null,null,null,null,null,null,null,null,null,null,null,null,null,null,null,null,null,null,null,null,null,null,null,null,null,null,null,null,null,null,null,{"$f":"X11+Z11+AB11+AD11+AF11","v":0},0]
[null,null,null,null,null,null,null,null,null,null,null,null,null,null,null,null,null,null,null,null,null,null,null,null,null,null,null,null,null,null,null,null,null,0,0]
[null,null,null,null,null,null,null,null,null,null,null,null,null,null,null,null,null,null,null,null,null,null,null,null,null,null,null,null,null,null,null,null,null,0,0]
[null,null,null,null,null,null,null,null,null,null,null,null,null,null,null,null,null,null,null,null,null,null,null,null,null,null,null,null,null,null,null,null,null,0,0]
[null,null,null,null,null,null,null,null,null,null,null,null,null,null,null,null,null,null,null,null,null,null,null,null,null,null,null,null,null,null,null,null,null,0,0]
[null,null,null,null,null,null,null,null,null,null,null,null,null,null,null,null,null,null,null,null,null,null,null,null,null,null,null,null,null,null,null,null,null,0,0]
[null,null,null,null,null,null,null,null,null,null,null,null,null,null,null,null,null,null,null,null,null,null,null,null,null,null,null,null,null,null,null,null,null,0,0]
[null,null,null,null,null,null,null,null,null,null,null,null,null,null,null,null,null,null,null,null,null,null,null,null,null,null,null,null,null,null,null,null,null,0,0]
[null,null,null,null,null,null,null,null,null,null,null,null,null,null,null,null,null,null,null,null,null,null,null,null,null,null,null,null,null,null,null,null,null,0,0]

{"sheet":"2 POA","index":1,"n_rows":8,"n_cols":24,"rows_kept":8,"cut":false,"hidden":true,"merged":[[5,22,5,23],[5,10,6,10],[5,11,6,11],[4,12,4,15],[4,6,4,11],[4,0,6,0],[5,12,6,12],[5,13,6,13],[5,14,6,14],[5,15,6,15],[5,6,6,6],[3,0,3,3],[3,4,3,23],[5,1,6,1],[5,2,6,2],[5,3,6,3],[4,4,4,5],[5,4,6,4],[5,5,6,5],[4,1,4,3],[4,16,4,23],[5,16,5,17],[5,18,5,19],[5,20,5,21],[5,7,6,7],[5,8,6,8],[5,9,6,9]]}
[null,null,"OPCIONES:"]
["Departamento:",{"$f":"'1 POM'!B2","v":0},null,null,"Chimaltenango","Chimaltenango"]
["Municipio:",{"$f":"'1 POM'!B3","v":0},null,null,"Chimaltenango","Chimaltenango",null,"Chimaltenango"]
["PLANIFICACIÓN ESTRATÉGICA",null,null,null,"PLANIFICACIÓN OPERATIVA ANUAL"]
["No. de Vinculación","1) Resultado Municipal ",null,null,"2) Programa Presupuestario",null,"3) Producto",null,null,null,null,null,"4) INTERVENCIONES (PROYECTOS O ACTIVIDADES)",null,null,null,"5) Programación anual de productos e  intervenciones"]
[null,"1.1 Resultado PDM_OT al 2032","1.2 Programa PDM \n(en caso no tenga PDM - OT aprobado)","1.3 Resultado PEI definido para el periodo 2026 - 2030","2.1 Programa Presupuestario","2.2 Subprograma","3.1 Nombre del Producto","3.2 Producto Competencia Propia","3.3 Producto Competencia delegada","3.4 Unidad de Medida","3.5 Responsable del cumplimiento de meta del producto","3.6 Corresponsable del cumplimiento de la meta del producto","4.1 Nombre de la intervención (proyecto o actividad)","4.2 Código SNIP","4.3 Código SMIP","4.4 Unidad de Medida","Primer Cuatrimestre",null,"Segundo Cuatrimestre",null,"Tercer Cuatrimestre",null,"Total Anual"]
[null,null,null,null,null,null,null,null,null,null,null,null,null,null,null,null,"5.1 Física","5.2 Financiera Quetzales","5.3 Física","5.4 Financiera Quetzales","5.5 Física","5.6 Financiera Quetzales","5.7 Total Meta Física Anual","5.8 Total Meta  financiera Anual"]
["No. de Vinculación","1.1 Resultado PDM_OT al 2032","1.2 Programa PDM \n(en caso no tenga PDM - OT aprobado)","1.3 Resultado PEI definido para el periodo 2026 - 2030","2.1 Programa Presupuestario","2.2 Subprograma","3.1 Nombre del Producto","3.2 Producto Competencia Propia","3.3 Producto Competencia delegada","3.4 Unidad de Medida","3.5 Responsable del cumplimiento de meta del producto","3.6 Corresponsable del cumplimiento de la meta del producto","4.1 Nombre de la intervención (proyecto o actividad)","4.2 Código SNIP","4.3 Código SMIP","4.4 Unidad de Medida","Física I","Financiera Quetzales I","Física II","Financiera Quetzales II","Física III","Financiera Quetzales III","12.2 Total Meta Física Multianual","12.3 Total Meta  financiera Multianual"]

{"sheet":"3 Disponibilidad Financiera","index":2,"n_rows":41,"n_cols":8,"rows_kept":41,"cut":false,"hidden":true,"merged":[[1,1,1,3],[2,1,2,3],[3,0,3,6],[4,0,4,6],[5,0,5,6],[6,0,6,6],[7,0,7,6],[8,0,8,6],[9,0,9,6],[10,0,10,6],[16,0,16,6],[17,0,17,6],[11,0,11,6],[12,0,12,6],[13,0,13,6],[14,0,14,6],[15,0,15,6]]}
[null,null,null,null,"OPCIONES:"]
["Departamento:",{"$f":"'1 POM'!B2","v":0},null,null,"Chimaltenango","Chimaltenango"]
["Municipio:",{"$f":"'1 POM'!B3","v":0},null,null,"Chimaltenango","Chimaltenango","Chimaltenango","Chimaltenango"]
["Matriz de Analisis de la Disponibilidad Financiera de la Municipalidad"]
["Instrucciones:"]
["1. Identificar la procedencia del financiamiento municipal para el 2026"]
["2. Indicar el monto total para el año 2026, según procedencia."]
["3. En el caso de inversión para proyectos que forman capital fijo, indicar el monto según procedencia. "]
["4. Indicar el porcentaje que corresponde a inversión en proyectos que forman capital fijo"]
["5.Indicar el monto de la disponibilidad financiera para el funcionamiento o los proyectos que no forman capital fijo "]
["6. Indicar el porcentaje que corresponde a la disponibilidad financiera destinada para funcionamiento o proyectos que no forman capital fijo."]
["7. El monto total para el financiamiento del 2026, es la sumatoria de la procedencia de financiamiento que tendrá la municipalidad."]
["8. Recursos comprometidos para el año fiscal 2026, ya sea por proyectos de arrastre, pago de deudas del 2025 o de años anteriores."]
["9. Monto total comprometido para el 2026"]
["10. Total de inversión disponible para nuevos proyectos: Es el resultado del total financiamiento destinado a Inversión durante el año fiscal 2026, menos el total comprometido."]
["11.  Monto total disponible para el financiamiento de la gestión municipal del 2026, siendo el resultado de la sumatoria  del total monto de funcionamiento más el total comprometido más el total de inversión disponible para nuevos proyectos"]
["Nota: las cifras detalladas en la matriz  Disponibilidad Financiera son ejemplos "]
["Disponibilidad financiera para el Plan Operativo Anual 2026"]
[]
["1) Procedencia del financiamiento a nivel municipal para el año 2026",null,"2) Disponibilidad financiera para el año 2026\nQ.","3) Monto destinado a Inversión \n Q.","4) % de Inversión ","5) Monto destinado a funcionamiento \nQ.","6) % de funcionamiento"]
["Situado constitucional",null,4000000,{"$f":"+C21*E21","v":3600000},0.9,{"$f":"+C21*G21","v":400000},0.1]
["IVA-PAZ",null,3000000,{"$f":"+C22*E22","v":2250000},0.75,{"$f":"+C22*G22","v":750000},0.25]
["Impuesto a circulación de vehículos terrestres",null,250000,{"$f":"+C23*E23","v":243750},0.97499999999999998,{"$f":"+C23*G23","v":6250},2.5000000000000001E-2]
["Fonpetrol",null,400000,400000,1,0]
["IUSI",null,700000,489999.99999999994,0.7,210000,0.3]
["Ingresos propios",null,3000000,0,null,{"$f":"+C26*G26","v":3000000},1]
["Regalías",null,100000,{"$f":"+C27*E27","v":0},null,100000]
["Recursos de CODEDE",null,2300000,{"$f":"+C28*E28","v":2300000},1,{"$f":"+C28*G28","v":0}]
["Otras"]
["…"]
["7) Total financiamiento para el año fiscal 2026",null,{"$f":"SUM(C21:C30)","v":13750000},{"$f":"SUM(D21:D30)","v":9283750},null,{"$f":"SUM(F21:F30)","v":4466250}]
[]
["8) Recursos comprometidos para el año fiscal 2026",null,"Monto comprometido"]
["Proyectos de arrastre",null,3000000]
["Deuda (monto a pagar en el año)",null,750000]
["Otros (Especificar)"]
["…"]
["…"]
["9) Total comprometido",null,{"$f":"SUM(C34:C38)","v":3750000}]
["10) Total de inversión disponible para nuevos proyectos",null,{"$f":"+D31-C39","v":5533750}]
["11) Total disponible para el año fiscal 2026",null,{"$f":"C40+C39+F31","v":13750000}]

{"sheet":"4 Anexo Distribución Financiera","index":3,"n_rows":20,"n_cols":5,"rows_kept":20,"cut":false,"hidden":true,"merged":[[3,0,3,4]]}
[]
["OPCIONES:"]
[]
["Base Legal distribución de recursos según procedencia de financiamiento a nivel municipal"]
["Procedencia del financiamiento a nivel municipal para el año 2026","% de Inversión ","% de funcionamiento","Código de Fuente Financiamiento"," Artículo y nombre de ley"]
["Situado constitucional",0.9,0.1,22,"Artículo 257, Constitución Política de la República"]
["IVA-PAZ",0.75,0.25,21,"Decreto Número 27-92, Ley del Impuesto al Valor Agregado, artículo 10 "]
["Impuesto a circulación de vehículos terrestres",0.97499999999999998,2.5000000000000001E-2,"29-02","Decreto 70-94, Ley del Impuesto sobre Circulación de Vehículos Terrestres, Marítimos y Aéreos, art. 6, 7, 8 y 9. "]
["Fonpetrol",1,0,"29-03","Decreto 71-2008, Ley del Fondo Económico para la Nación, art. 6."]
["IUSI",0.7,0.3,31,"Decreto Número 15-98, art. 2, Ley del Impuesto Único Sobre Inmuebles"]
["Ingresos propios",0,1,31,"Decreto Número 12-2002, Código Municipal"]
["Boleto de Ornato ",null,null,31,"Decreto Número 121-96, del Congreso de la República"]
["Recursos de CODEDE",1,0]
["Cooperación Internacional no reembolsable (técnica, financiera, especie)","%","%",null,"Cada cooperante decide, cuanto destina para inversión o funcionamiento. También depende de como se administren los fondos, es decir si serán administrados por el mismo cooperante o por la municipalidad."]
["Regalías",1,0]
["De regalías mineras las municipalidades reciben el 50% del 1% (el otro 50% lo recibe el Estado), pero no específica cuanto se destina a inversión y a funcionamiento.","No específica","No específica",31,"Decreto Número 48-97, Ley de Minería, art. 63. "]
["Monto de la licencia para aprovechamiento forestal. El cincuenta por ciento del monto recaudado será transferido a las municipalidades donde estén ubicados los bosques aprovechados; este monto será específicamente destinado para el control y vigilancia forestal; y el cincuenta por ciento restante será destinado al Fondo Forestal Privativo.","No específica","No específica",31,"Decreto Número 101-96,Ley forestal, art. 87."]
["Fondos del INAB para Inversión",1,0]
["El resto de ingresos propios recaudados por las municipalidades, puede utilizarse tanto para funcionamiento e inversión, de acuerdo a su capacidad de recaudación financiera establecida y de acuerdo a lo que especifiquen sus reglamentos, de construcción, agua, prestación de servicio de basura, transporte, entre otros.",null,null,31]
["Otras (ejemplo préstamos)",1,0]

{"sheet":"6 Seguimiento 2026","index":4,"n_rows":8,"n_cols":26,"rows_kept":8,"cut":false,"hidden":true,"merged":[[5,16,5,19],[5,20,5,23],[5,24,5,25],[4,4,4,5],[5,8,6,8],[5,9,6,9],[3,0,3,3],[4,0,6,0],[4,1,4,3],[4,6,4,7],[5,1,6,1],[5,5,6,5],[5,6,6,6],[5,2,6,2],[5,3,6,3],[5,4,6,4],[5,7,6,7],[3,4,3,25],[4,8,4,25],[5,10,6,10],[5,11,6,11],[5,12,5,15]]}
[null,null,"OPCIONES:"]
["Departamento:",{"$f":"'1 POM'!B2","v":0}]
["Municipio:",{"$f":"'1 POM'!B3","v":0}]
["PLANIFICACIÓN ESTRATÉGICA"]
["No. de Vinculación","1) Resultado Municipal ",null,null,"2) Producto",null,"3) INTERVENCIONES (PROYECTOS O ACTIVIDADES)",null,"4) Indicadores de Seguimiento"]
[null,"1.1 Resultado PDM_OT al 2032","1.2 Programa PDM \n(en caso no tenga PDM - OT aprobado)","1.3 Resultado PEI definido para el periodo 2026 - 2030","2.1 Nombre del Producto","2.2 Unidad de Medida","3.1 Nombre de la intervención (proyecto o actividad)","3.2 Unidad de Medida","4.1 Nombre del indicador de  producto","4.2 Fórmula del Indicador de producto","4.3 Total Meta Física Anual","4.4 Total Meta  financiera Anual","Primer Cuatrimestre",null,null,null,"4.6 Segundo Cuatrimestre",null,null,null,"4.7 Tercer Cuatrimestre",null,null,null,"4.8 Total % de avance 2026"]
[null,null,null,null,null,null,null,null,null,null,null,null,"4.5 Meta física","4.6 Porcentaje  meta física programada","4.7 Meta Finaciera","4.8 Porcentaje meta finaciera programada","4.9 Meta física","4.10 Porcentaje  meta física programada","4.11 Meta Finaciera","4.12 Porcentaje meta finaciera programada","4.13 Meta física","4.14 Porcentaje  meta física programada","4.15 Meta Finaciera","4.16 Porcentaje Meta finaciera programada","4.17 Porcentaje meta física programada","4.18 Porcentaje meta física programada"]
["No. de Vinculación","1.1 Resultado PDM_OT al 2032","1.2 Programa PDM \n(en caso no tenga PDM - OT aprobado)","1.3 Resultado PEI definido para el periodo 2026 - 2030","2.1 Nombre del Producto","2.2 Unidad de Medida","3.1 Nombre de la intervención (proyecto o actividad)","3.2 Unidad de Medida","Nombre del indicador de  producto","Fórmula del Indicador de producto","Total Meta Física Anual","Total Meta  financiera Anual","Meta física I","% Meta física programada I","Meta Finaciero I","% Meta finaciera programada I","Meta física II","% Meta física programada II","Meta Finaciero II","% Meta finaciera programada II","Meta física III","% Meta física programada III","Meta Finaciero III","% Meta finaciera programada III","% Meta física programada","% Meta física programada2"]

{"sheet":"5 Catálogo Productos 2026","index":5,"n_rows":116,"n_cols":23,"rows_kept":116,"cut":false,"hidden":true,"merged":[[3,0,3,21],[4,0,4,6],[4,11,4,16],[4,17,4,21]]}
[]
[null,null,"OPCIONES:"]
[]
["Catálogo de Productos Vigentes para el período 2026-2030 (Planificación y Programación Municipal) "]
["VINCULACIÓN INSTITUCIONAL ",null,null,null,null,null,null,null,null,"POLITICA GENERAL DE GOBIERNO \nPGG 2024-2028",null,"CORRESPONDENCIA DE COMPETENCIAS",null,null,null,null,null,"PRESUPUESTO"]
["No. ","EJE K´ATUN ","OBJETIVO DE DESARROLLO SOSTENIBLE (ODS)","PRIORIDAD NACIONAL DE DESARROLLO ","META ESTRATÉGICA DE DESARROLLO ","RESULTADO ESTRATÉGICO (RE) ","RESULTADO INSTITUCIONAL ","Resultado PDM-OT\n2032","Resultado PDM-OT/PEI 2025 -2029\nintermedio/ inmediato","EJE ESTRATÉGICO ","NOMBRE DEL PRODUCTO ","UNIDAD DE MEDIDA ","COMPETENCIA MUNICIPAL","COMPLETENCIA DELEGADA ","INSTITUCIÓN RECTORA ","RESPONSABLE","CORRESPONSABLE","NÚMERO PROGRAMA","PROGRAMA PRESUPUESTARIO ","NÚMERO SUBPROGRAMA","SUBPROGRAMA ","NOMBRE DE LA ACTIVIDAD PRESUPUESTARIA","INDICADOR"]
["No_DE_VINCULACION","EJE K´ATUN ","OBJETIVO DE DESARROLLO SOSTENIBLE (ODS)","PRIORIDAD NACIONAL DE DESARROLLO ","META ESTRATÉGICA DE DESARROLLO ","RESULTADO ESTRATÉGICO (RE) ","RESULTADO INSTITUCIONAL ","Resultado PDM-OT\n2032","Resultado PDM-OT/PEI 2025 -2029\nintermedio/ inmediato/","POLITICA GENERAL DE GOBIERNO \nPGG 2024-2028/EJE ESTRATÉGICO ","NOMBRE DEL PRODUCTO ","UNIDAD DE MEDIDA ","COMPETENCIA MUNICIPAL","COMPLETENCIA DELEGADA ","INSTITUCIÓN RECTORA ","RESPONSABLE","CORRESPONSABLE","NÚMERO PROGRAMA","PROGRAMA PRESUPUESTARIO ","NÚMERO SUBPROGRAMA","SUBPROGRAMA ","NOMBRE DE LA ACTIVIDAD PRESUPUESTARIA","Número de familias que cuentan con servicios de agua apta para consumo humano, al finalizar el año 2026."]
[1,"Recursos naturales hoy y para el futuro","ODS 6 Agua limpia y saneamiento","PND 3 Acceso al agua y gestión de los recursos naturales","MED 4 Para 2030, lograr la ordenación sostenible y el uso eficiente de los recursos naturales \n\n","Para el 2029, se ha incrementado en 108 puntos porcentuales el acceso a agua potable domiciliar en los hogares guatemaltecos (de 763% en 2014 a 8710% en 2024)",null,"Para el año 2032, en el municipio XXX se ha incrementado en XX% las familias con acceso a agua potable, en el municipio XX (De XX% en el año XXX a XX% en el año 2032)","Para el año 2029,  se ha incrementado en XX% las familias con acceso a agua potable, en el municipio XXXX (De XX% en el año XXX a XX% en el año 2029)","Lucha contra la desnutrición y malnutrición","Familias con servicios de agua apta para consumo humano  ","familia","X",null,"MUNICIPALIDAD ","MUNICIPALIDAD ","MUNICIPALIDAD ",12,"Nombre: Acceso al agua potable y Saneamiento básico\nDescripción: Acceso al agua potable y Saneamiento básico",1,"Nombre: Incremento en el acceso al agua potable domiciliar\nDescripción: Incremento en el acceso al agua potable domiciliar","Nombre: Familias con abastecimiento domiciliario de agua potable \nDescripción: Familias con servicios de agua apta para consumo humano  ","Número de familias que cuentan con servicios de agua apta para consumo humano, al finalizar el año 2026."]
[2,"Recursos naturales hoy y para el futuro","ODS 6 Agua limpia y saneamiento\n\n","PND 3 Acceso al agua y gestión de los recursos naturales","MED 4 Para 2030, lograr la ordenación sostenible y el uso eficiente de los recursos naturales \n\n","Para el 2029, se ha incrementado en 21 puntos porcentuales el  acceso a saneamiento básico en los hogares guatemaltecos (De 533% en 2014 a 743% en 2024)",null,"Para el 2032 se ha incrementado en XX% el acceso a servicios de drenajes en el municipio de XXX (De XX % en el año XXX a XX% en el año XXX)","Para el 2029 se ha incrementado en XX% el acceso a servicios de drenajes en el municipio de XXX (De XX % en el año XXX a XX% en el año XXX)","Lucha contra la desnutrición y malnutrición","Familias beneficiadas con drenajes, alcantarillado, fosa séptica y planta de tratamiento de agua\n\n\n","familia","X",null,"MUNICIPALIDAD ","MUNICIPALIDAD ","MUNICIPALIDAD ",12,"Nombre: Acceso al agua potable y Saneamiento básico\nDescripción: Acceso al agua potable y Saneamiento básico",2,"Nombre: Incremento al acceso a saneamiento básico \nDescripción: Incremento al acceso a saneamiento básico ","Nombre: Sistema de saneamiento de agua\nDescripción: Familias beneficiadas con drenajes, alcantarillado, fosa séptica y planta de tratamiento de agua","Número de familias que cuentan con drenajes, alcantarillado, fosa séptica y planta de tratamiento de agua, al finalizar el año 2026."]
[3,"Recursos naturales hoy y para el futuro","ODS 6 Agua limpia y saneamiento","PND 3 Acceso al agua y gestión de los recursos naturales","MED 4 Para 2030, lograr la ordenación sostenible y el uso eficiente de los recursos naturales \n\n","Para el 2029, se ha incrementado en 21 puntos porcentuales el  acceso a saneamiento básico en los hogares guatemaltecos (De 533% en 2014 a 743% en 2024)",null,"Para el año 2032, se ha incrementado en XX% las  familias con servicio de recolección, tratamiento y disposición final de desechos y residuos sólidos, en el municipio XX (De XX% en el año XXX a XX% en el año 2032)","Para el año 2029, se ha incrementado en XX% las  familias con servicio de recolección, tratamiento y disposición final de desechos y residuos sólidos,  en el municipio XXX (De XX% en el año XXX a XX% en el año 2029)","Lucha contra la desnutrición y malnutrición","Familias con servicio de recolección, tratamiento y disposición final de desechos y residuos sólidos hasta su disposición final, Limpieza y ornato\n\n","familia","X",null,"MUNICIPALIDAD ","MUNICIPALIDAD ","MUNICIPALIDAD ",12,"Nombre: Acceso al agua potable y Saneamiento básico\nDescripción: Acceso al agua potable y Saneamiento básico",2,"Nombre: Incremento al acceso a saneamiento básico \nDescripción: Incremento al acceso a saneamiento básico ","Nombre: Servicios de recolección, tratamiento y disposición final de desechos y residuos sólidos\nDescripción: Familias con servicio de recolección, tratamiento y disposición final de desechos y residuos sólidos hasta su disposición final, Limpieza y ornato","Número de familias que cuentan con servicio de recolección, tratamiento y disposición final de desechos y residuos sólidos hasta su disposición final, Limpieza y ornato, al finalizar el año 2026."]
[4,"Recursos naturales hoy y para el futuro","ODS 6 Agua limpia y saneamiento","PND 3 Acceso al agua y gestión de los recursos naturales","MED 4 Para 2030, lograr la ordenación sostenible y el uso eficiente de los recursos naturales \n\n","Para el 2029, se ha incrementado en 21 puntos porcentuales el  acceso a saneamiento básico en los hogares guatemaltecos (De 533% en 2014 a 743% en 2024)",null,"Para el año 2032, se ha incrementado en XX% las familias con servicio de alcantarillado, en el municipio XX (De XX% en el año XXX a XX% en el año 2032)","Para el año 2029,  se ha incrementado en XX% las familias con servicio de alcantarillado, en el municipio XXX (De XX% en el año XXX a XX% en el año 2029)","Lucha contra la desnutrición y malnutrición","Familias beneficiadas con sistema de aguas pluviales","familia","X",null,"MUNICIPALIDAD ","MUNICIPALIDAD ","MUNICIPALIDAD ",12,"Nombre: Acceso al agua potable y Saneamiento básico\nDescripción: Acceso al agua potable y Saneamiento básico",2,"Nombre: Incremento al acceso a saneamiento básico \nDescripción: Incremento al acceso a saneamiento básico ","Nombre: Sistema de aguas pluviales\nDescripción: Familias beneficiadas con sistema de aguas pluviales","Número de familias que cuentan con sistema de aguas pluviales, al finalizar el año 2026."]
[5,"Recursos naturales hoy y para el futuro","ODS 6 Agua limpia y saneamiento","PND 3 Acceso al agua y gestión de los recursos naturales","MED 4 Para 2030, lograr la ordenación sostenible y el uso eficiente de los recursos naturales \n\n","Para el 2029, se ha incrementado en 21 puntos porcentuales el  acceso a saneamiento básico en los hogares guatemaltecos (De 533% en 2014 a 743% en 2024)",null,"Para el 2032 se ha incrementado en XX% el acceso a otros servicios de saneamiento, mercados, rastros y cementerios en el municipio de XXX (De XX % en el año XXX a XX% en el año 2032)","Para el 2029 se ha incrementado en XX% el acceso a otros servicios de saneamiento, mercados, rastros y cementerios en el municipio de XXX (De XX % en el año XXX a XX% en el año 2029)","Lucha contra la desnutrición y malnutrición","Familias con servicios de mercados; rastros; administración de cementerios y la autorización y control de los cementerios privados;\n","familia","X",null,"MUNICIPALIDAD ","MUNICIPALIDAD ","MUNICIPALIDAD ",12,"Nombre: Acceso al agua potable y Saneamiento básico\nDescripción: Acceso al agua potable y Saneamiento básico",2,"Nombre: Incremento al acceso a saneamiento básico \nDescripción: Incremento al acceso a saneamiento básico ","Nombre: Familias con servicios de mercado, rastros y cementerios\nDescripción: Familias con servicios de mercados; rastros; administración de cementerios y la autorización y control de los cementerios privados;","Número de familias que cuentan con servicios de mercados; rastros; administración de cementerios y la autorización y control de los cementerios privados;, al finalizar el año 2026."]
[6,"Recursos naturales hoy y para el futuro","ODS 6 Agua limpia y saneamiento","PND 3 Acceso al agua y gestión de los recursos naturales","Para 2030, lograr la ordenación sostenible y el uso eficiente de los recursos naturales","Para el 2029, se ha incrementado en 21 puntos porcentuales el  acceso a saneamiento básico en los hogares guatemaltecos (De 533% en 2014 a 743% en 2024)",null,"Para el año 2032, en el municipio XXX se ha incrementado en XX% las  familias con servicio de recolección, tratamiento y disposición final de desechos y residuos sólidos (De XX% en el año XXX a XX% en el año 2032)","Para el año 2029, en el municipio XXX se ha incrementado en XX% las  familias con servicio de recolección, tratamiento y disposición final de desechos y residuos sólidos (De XX% en el año XXX a XX% en el año 2025)",null,"Recolección, manejo y disposición final de residuos y desechos sólidos","Metro cúbico","X",null,"MUNICIPALIDAD ","MUNICIPALIDAD ","MUNICIPALIDAD ",12,"Nombre: Acceso al agua potable y Saneamiento básico\nDescripción: Acceso al agua potable y Saneamiento básico",2,"Nombre: Incremento al acceso a saneamiento básico \nDescripción: Incremento al acceso a saneamiento básico ","Nombre: Recolección, manejo y disposición final de residuos y desechos sólidos\nDescripción: Recolección, manejo y disposición final de residuos y desechos sólidos","Metros cúbicos recolectados para el manejo y disposición final de residuos y desechos sólidos, al finalizar el año 2026."]
[7,"Recursos naturales hoy y para el futuro","ODS 6 Agua limpia y saneamiento","PND 3 Acceso al agua y gestión de los recursos naturales","MED 4 Para 2030, lograr la ordenación sostenible y el uso eficiente de los recursos naturales \n\n","Para el 2029, se ha incrementado en 21 puntos porcentuales el  acceso a saneamiento básico en los hogares guatemaltecos (De 533% en 2014 a 743% en 2024)",null,"Para el 2032 se ha incrementado en XX% el acceso a otros serivicios de saneamiento, mercados, rastros y cementerios en el municipio de XXX (De XX % en el año XXX a XX% en el año XXX familias que reciben otros servicios de saneamiento, mercados, rastros y cementerios)","Para el 2029, se ha incrementado en XX puntos porcentuales el % de equipamiento  para el servicio de saneamiento en el  municipio de XXX (De XX% en 2019 a XX% en 2024)",null,"Administración de mercados municipales","Evento","X",null,"MUNICIPALIDAD ","MUNICIPALIDAD ","MUNICIPALIDAD ",12,"Nombre: Acceso al agua potable y Saneamiento básico\nDescripción: Acceso al agua potable y Saneamiento básico",2,"Nombre: Incremento al acceso a saneamiento básico \nDescripción: Incremento al acceso a saneamiento básico ","Nombre: Administración de mercados municipales\nDescripción: Administración de mercados municipales","Número de eventos realizados para la administración de mercados, al finalizar el año 2026."]
[8,"Recursos naturales hoy y para el futuro","ODS 15 Vida de ecosistemas terrestres ","PND 3 Acceso al agua y gestión de los recursos naturales","MED 4 Para 2030, lograr la ordenación sostenible y el uso eficiente de los recursos naturales \n\n",null,"Para 2027, se ha mantenido en 100% las gestiones integradas de recursos hídricos con procesos de vigilancia y mecanismos de control que permitan su protección y conservación a nivel nacional (De 100%en 2021 a 10% en 2027)","Para el 2032 el XX% de la población a ha sido sensibilizada y capacitada en el manejo sostenible de los recursos naturales, del municipio de XXX  (De XX%  en el año XXX a XX% en el año 2032)","Para el 2029, se ha incremento a  XX% de la población sensibilizada en el manejo sostenible de los recursos naturales, del municipio de XXXXX\n(De XX%  en el año XXXX a XX% en el año 2029)\n","Cuidado de la Naturaleza\n\n","Monitoreo de calidad del agua y de descarga de aguas residuales","EVENTO",null,"X","MARN ","MARN","MUNICIPALIDAD ",12,"Nombre: Acceso al agua potable y Saneamiento básico\nDescripción: Acceso al agua potable y Saneamiento básico",3,"Nombre: Gestión integrada de recursos hídricos\nDescripción: Gestión integrada de recursos hídricos","Nombre: Monitoreo de calidad del agua y de descargar de aguas residuales\nDescripción: Eventos de Monitoreo y Análisis de intervención general para la protección y conservación de cuencas","Número de eventos realizados relacionados con Monitoreo de calidad del agua y de descarga de aguas residuales, al finalizar el año 2026."]
[9,"Recursos naturales hoy y para el futuro","ODS 15 Vida de ecosistemas terrestres ","PND 3 Acceso al agua y gestión de los recursos naturales","MED 4 Para 2030, lograr la ordenación sostenible y el uso eficiente de los recursos naturales \n\n",null,"Para 2027, se ha mantenido en 100% las gestiones integradas de recursos hidricos con procesos de vigilancia y mecanismos de control que permitan su protección y conservación a nivel nacional (De 100%en 2021 a 10% en 2027)","Para el 2032 el XX% de la población a ha sido sensibilizada y capacitada en el manejo sostenible de los recursos naturales, del municipio de XXX  (De XX%  en el año XXX a XX% en el año 2032)","Para el 2029, se ha incrementdo a  XX% de la población sensibilizada en el manejo sostenible de los recursos naturales, del municipio de XXXXX\n(De XX%  en el año XXXX a XX% en el año 2029)\n","Cuidado de la Naturaleza","Eventos de control sobre contaminación hídrica para la prevención de la contaminación de ecosistemas","EVENTO",null,"X","MARN ","MARN","Municipalidad",12,"Nombre: Acceso al agua potable y Saneamiento básico\nDescripción: Acceso al agua potable y Saneamiento básico",3,"Nombre: Gestión integrada de recursos hídricos\nDescripción: Gestión integrada de recursos hídricos","Nombre: Control sobre contaminación hídrica \nDescripción: Eventos de control sobre  contaminación hídrica para la prevención de la contaminación de ecosistemas","Número de eventos realizados de control sobre contaminación hídrica para la prevención de la contaminación de ecosistemas, al finalizar el año 2026."]
[10,"Bienestar para la gente","ODS 2 Hambre cero\nODS 3 Salud y bienestar","PND 4 Seguridad Alimentaria y Nutricional","MED 9 Para el 2032, reducir en no menos de 25 puntos porcentuales, la desnutrición crónica en niños menores de cinco años, con énfasis en los niños y niñas de los pueblos maya, xinca y garífuna, y del área rural","Para el 2029, se ha disminuido la razón de la mortalidad en menores de 5 años a 19 muertes (De 35 muertes en 2015 a 19 muertes por cada mil nacidos vivos en 2029); y, para el 2029, se ha disminuido a 405 por ciento la prevalencia de desnutrición crónica en niñas y niños menores de 5 años de edad (De 465% en 2014-2015 a 405% en 2029)",null,"En 2032 se habrá reducido la desnutrición crónica en XX puntos porcentuales en niños menores de cinco años en el municipio de XXX (de XX% en 20XX a XX% en el 20XX)       ","Para el 2029, se ha capacitado al XX% de personas en temas de producción de alimentos y sistemas productivos, en el municipio de XXX (De XX% en 20XX a XX% en el 2029)","Lucha contra la Desnutrición y Malnutrición","Productores (a) beneficiados con capacitación, asistencia técnica e insumos agropecuarios para promover la alimentación en el área rural ","Persona",null,"X","Ministerio de Agricultura, Ganadería y Alimentación -MAGA-","MAGA","MUNICIPALIDAD ",13,"Nombre: Prevención de la mortalidad\nDescripción: Prevención de la mortalidad",1,"Nombre: Prevención de la mortalidad de la niñez\nDescripción: Prevención de la mortalidad de la niñez y de la desnutrición crónica","Nombre: Insumos agropecuarios en el área rural\nDescripción: Productores (a) beneficiados con capacitación, asistencia técnica e insumos agropecuarios para promover la alimentación en el área rural ","Número de Productores (a) beneficiados con capacitación, asistencia técnica e insumos agropecuarios para promover la alimentación en el área rural, al finalizar el año 2026."]
[11,"Bienestar para la gente","ODS 2 Hambre cero\nODS 3 Salud y bienestar","PND 4 Seguridad Alimentaria y Nutricional","MED 9 Para el 2032, reducir en no menos de 25 puntos porcentuales, la desnutrición crónica en niños menores de cinco años, con énfasis en los niños y niñas de los pueblos maya, xinca y garífuna, y del área rural","Para el 2029, se ha disminuido la razón de la mortalidad en menores de 5 años a 19 muertes (De 35 muertes en 2015 a 19 muertes por cada mil nacidos vivos en 2029); y, para el 2029, se ha disminuido a 405 por ciento la prevalencia de desnutrición crónica en niñas y niños menores de 5 años de edad (De 465% en 2014-2015 a 405% en 2029)",null,"En 2032 se habrá reducido la desnutrición crónica en XX puntos porcentuales en niños menores de cinco años en el municipio de XXX (De XX% en 20XX a XX% en el 20XX)       ","Para el 2029, se ha capacitado al XX% de personas en temas de producción de alimentos y sistemas productivos, en el municipio de XXX (De XX% en 20XX a XX% en el 2029)","Lucha contra la Desnutrición y Malnutrición ","Productores (as) familiares capacitados y asistidos técnicamente para mejorar sus sistemas productivos\n\n","Persona",null,"X","Ministerio de Agricultura, Ganadería y Alimentación -MAGA-","MAGA","MUNICIPALIDAD ",13,"Nombre: Prevención de la mortalidad\nDescripción: Prevención de la mortalidad",1,"Nombre: Prevención de la mortalidad de la niñez\nDescripción: Prevención de la mortalidad de la niñez y de la desnutrición crónica","Nombre: Mejora en los sistemas productivos\nDescripción: Productores (as) familiares capacitados y asistidos técnicamente para mejorar sus sistemas productivos","Número de Productores (as) familiares capacitados y asistidos técnicamente para mejorar sus sistemas productivos, al finalizar el año 2026."]
[12,"Bienestar para la gente","ODS 2 Hambre cero\nODS 3 Salud y bienestar","PND 4 Seguridad Alimentaria y Nutricional","MED 9 Para el 2032, reducir en no menos de 25 puntos porcentuales, la desnutrición crónica en niños menores de cinco años, con énfasis en los niños y niñas de los pueblos maya, xinca y garífuna, y del área rural","Para el 2029, se ha disminuido la razón de la mortalidad en menores de 5 años a 19 muertes (De 35 muertes en 2015 a 19 muertes por cada mil nacidos vivos en 2029); y, para el 2029, se ha disminuido a 405 por ciento la prevalencia de desnutrición crónica en niñas y niños menores de 5 años de edad (De 465% en 2014-2015 a 405% en 2029)",null,"En 2032 se habrá reducido la desnutrición crónica en XX puntos porcentuales en niños menores de cinco años en el municipio de XXX (de XX% en 20XX a XX% en el 20XX)       ","Para el 2029, se ha beneficiado el XX% de familias por la entrega de alimentos, en el municipio de XXX  (De XX% en 20XX a XX% en el 2029)","Lucha contra la Desnutrición y Malnutrición","Asistencia y dotación alimentaria a familias en riesgo de inseguridad alimentaria por pérdida y por acciones productivas","Ración",null,"X","Ministerio de Agricultura, Ganadería y Alimentación -MAGA-","MAGA","MUNICIPALIDAD ",13,"Nombre: Prevención de la mortalidad\nDescripción: Prevención de la mortalidad",1,"Nombre: Prevención de la mortalidad de la niñez\nDescripción: Prevención de la mortalidad de la niñez y de la desnutrición crónica","Nombre: Atención para el acceso alimentario\nDescripción: Asistencia y dotación alimentaria a familias en riesgo de inseguridad alimentaria por pérdida y por acciones productivas","Número de raciones entregadas mediante Asistencia y dotación alimentaria a familias en riesgo de inseguridad alimentaria por pérdida y por acciones productivas, al finalizar el año 2026."]
[13,"Bienestar para la gente","ODS 2 Hambre cero\nODS 3 Salud y bienestar","PND 2 Acceso a servicios de salud","MED 3 Lograr la cobertura sanitaria universal, en particular la protección contra los riesgos financieros, el acceso a servicios de salud esenciales de calidad y el acceso a medicamentos y vacunas seguros, eficaces, asequibles y de calidad para todos","Para el 2029, se ha disminuido la razón de la mortalidad en menores de 5 años a 19 muertes (De 35 muertes en 2015 a 19 muertes por cada mil nacidos vivos en 2029); y, para el 2029, se ha disminuido a 405 por ciento la prevalencia de desnutrición crónica en niñas y niños menores de 5 años de edad (De 465% en 2014-2015 a 405% en 2029)",null,"Para el año 2032, se ha disminuido la tasa de mortalidad en la niñez en XX puntos por cada mil nacidos vivos, en el municipio de XXX (De XX muertes en XXX a  XX muertes por cada mil nacidos vivos en 2032)","Para el año 2029, se ha aumentado en XX%  la atención integral en el tema de salud a niños y niñas menores de 5 años, en el municipio de XXX (De XX en el año XXX a XX en el año 2029)","Desarrollo Social","Niño y niña menor de 5 años con monitoreo de crecimiento","Persona",null,"X","Ministerio de Salud Pública y Asistencia Social -MSPAS-","MSPAS","MUNICIPALIDAD ",13,"Nombre: Prevención de la mortalidad\nDescripción: Prevención de la mortalidad",1,"Nombre: Prevención de la mortalidad de la niñez\nDescripción: Prevención de la mortalidad de la niñez y de la desnutrición crónica","Nombre: Monitoreo de crecimiento\nDescripción: Niño y niña menor de 5 años con monitoreo de crecimiento","Número de niño y niña menor de 5 años beneficiados con monitoreo de crecimiento, al finalizar el año 2026."]
[14,"Bienestar para la gente","ODS 2 Hambre cero\nODS 3 Salud y bienestar","PND 2 Acceso a servicios de salud","MED 3 Lograr la cobertura sanitaria universal, en particular la protección contra los riesgos financieros, el acceso a servicios de salud esenciales de calidad y el acceso a medicamentos y vacunas seguros, eficaces, asequibles y de calidad para todos","Para el 2029, se ha disminuido la razón de la mortalidad en menores de 5 años a 19 muertes (De 35 muertes en 2015 a 19 muertes por cada mil nacidos vivos en 2029); y, para el 2029, se ha disminuido a 405 por ciento la prevalencia de desnutrición crónica en niñas y niños menores de 5 años de edad (De 465% en 2014-2015 a 405% en 2029)",null,"Para el año 2032, se ha disminuido la tasa de mortalidad en la niñez en XX puntos por cada mil nacidos vivos, en el municipio de XXX (De XX muertes en XXX a  XX muertes por cada mil nacidos vivos en 2032)","Para el año 2029, se ha aumentado en XX% la atención integral en el tema de salud a niños y  niñas menores de 5 años, en el municipio de XXX (De XX en el año XXX a XX en el año 2029)","Desarrollo Social","Niño y niña menor de 5 años con suplementación de micronutrientes","Persona",null,"X","Ministerio de Salud Pública y Asistencia Social -MSPAS-","MSPAS","MUNICIPALIDAD ",13,"Nombre: Prevención de la mortalidadca\nDescripción: Prevención de la mortalidad",1,"Nombre: Prevención de la mortalidad de la niñez\nDescripción: Prevención de la mortalidad de la niñez y de la desnutrición crónica","Nombre: Suplementación de micronutrientes\nDescripción: Niño y niña menor de 5 años con suplementación de micronutrientes","Número de niño y niña menor de 5 años beneficiados con suplementación alimentaria, al finalizar el año 2026."]
[15,"Bienestar para la gente","ODS 2 Hambre cero\nODS 3 Salud y bienestar","PND 2 Acceso a servicios de salud","MED 3 Lograr la cobertura sanitaria universal, en particular la protección contra los riesgos financieros, el acceso a servicios de salud esenciales de calidad y el acceso a medicamentos y vacunas seguros, eficaces, asequibles y de calidad para todos","Para el 2029, se ha disminuido la razón de la mortalidad en menores de 5 años a 19 muertes (De 35 muertes en 2015 a 19 muertes por cada mil nacidos vivos en 2029); y, para el 2029, se ha disminuido a 405 por ciento la prevalencia de desnutrición crónica en niñas y niños menores de 5 años de edad (De 465% en 2014-2015 a 405% en 2029)",null,"Para el año 2032, se ha disminuido la tasa de mortalidad en la niñez en XX puntos por cada mil nacidos vivos, en el municipio de XXX (De XX muertes en XXX a  XX muertes por cada mil nacidos vivos en 2032)","Para el año 2029, se ha aumentado en XX%  la atención integral en el tema de salud a niños y niñas menores de 5 años, en el municipio de XXX (De XX en el año XXX a XX en el año 2029)","Desarrollo Social","Niño y niña de 1 a menor de 5 años con desparasitación ","Persona",null,"X","Ministerio de Salud Pública y Asistencia Social -MSPAS-","MSPAS","MUNICIPALIDAD ",13,"Nombre: Prevención de la mortalidad\nDescripción: Prevención de la mortalidad",1,"Nombre: Prevención de la mortalidad de la niñez\nDescripción: Prevención de la mortalidad de la niñez y de la desnutrición crónica","Nombre: Desparasitación en niños y niñas\nDescripción: Niño y niña de 1 a menor de 5 años con desparasitación ","Número de niño y niña menor de 5 años beneficiados con desparasitación, al finalizar el año 2026."]
[16,"Bienestar para la gente","ODS 2 Hambre cero\nODS 3 Salud y bienestar","PND 2 Acceso a servicios de salud","MED 3 Lograr la cobertura sanitaria universal, en particular la protección contra los riesgos financieros, el acceso a servicios de salud esenciales de calidad y el acceso a medicamentos y vacunas seguros, eficaces, asequibles y de calidad para todos","Para el 2029, se ha disminuido la razón de la mortalidad en menores de 5 años a 19 muertes (De 35 muertes en 2015 a 19 muertes por cada mil nacidos vivos en 2029); y, para el 2029, se ha disminuido a 405 por ciento la prevalencia de desnutrición crónica en niñas y niños menores de 5 años de edad (De 465% en 2014-2015 a 405% en 2029)",null,"Para el año 2032, se ha disminuido la tasa de mortalidad en la niñez en XX puntos por cada mil nacidos vivos, en el municipio de XXX (De XX muertes en XXX a  XX muertes por cada mil nacidos vivos en 2032)","Para el año 2029 se ha aumentado en XX%  la atención integral en el tema de salud a niños y niñas menores de 5 años, en el municipio de XXX (De XX en el año 20XX a XX en el año 2029)","Desarrollo Social","Construcción, ampliación y mejoramiento de centros comunitarios, centros y puestos de salud, maternidades periféricas, centro de atención permanente y centro de atención integral materno infantil\n\n","METRO CUADRADO",null,"X","Ministerio de Salud Pública y Asistencia Social -MSPAS-","MSPAS","MUNICIPALIDAD ",13,"Nombre: Prevención de la mortalidad\nDescripción: Prevención de la mortalidad",1,"Nombre: Prevención de la mortalidad de la niñez\nDescripción: Prevención de la mortalidad de la niñez y de la desnutrición crónica","Nombre: Infraestructura en salud\nDescripción: Construcción, ampliación y mejoramiento de centros comunitarios, centros y puestos de salud, maternidades periféricas, centro de atención permanente y centro de atención integral materno infantil","Cantidad de metros cuadrados para Construcción, ampliación y mejoramiento de centros comunitarios, centros y puestos de salud, maternidades periféricas, centro de atención permanente y centro de atención integral materno infantil, al finalizar el año 2026."]
[17,"Bienestar para la gente","ODS 2 Hambre cero\nODS 3 Salud y bienestar","PND 2 Acceso a servicios de salud","MED 3 Lograr la cobertura sanitaria universal, en particular la protección contra los riesgos financieros, el acceso a servicios de salud esenciales de calidad y el acceso a medicamentos y vacunas seguros, eficaces, asequibles y de calidad para todos","Para el 2029, se ha disminuido la razón de la mortalidad en menores de 5 años a 19 muertes (De 35 muertes en 2015 a 19 muertes por cada mil nacidos vivos en 2029); y, para el 2029, se ha disminuido a 405 por ciento la prevalencia de desnutrición crónica en niñas y niños menores de 5 años de edad (De 465% en 2014-2015 a 405% en 2029)",null,"Para el año 2032, se ha disminuido la tasa de mortalidad en la niñez en XX puntos por cada mil nacidos vivos, en el municipio de XXX (De XX muertes en XXX a  XX muertes por cada mil nacidos vivos en 2032)","Para el año 2029, se ha aumentado en XX%  la atención integral en el tema de salud a niños y niñas menores de 5 años, en el municipio de XXX (De XX en el año 20XX a XX en el año 2029)","Desarrollo Social","Madre de niño y niña menor de 5 años, que recibe consejería sobre prácticas para el cuidado infantil","Persona",null,"X","Ministerio de Salud Pública y Asistencia Social -MSPAS-","MSPAS","MUNICIPALIDAD ",13,"Nombre: Prevención de la mortalidad\nDescripción: Prevención de la mortalidad",1,"Nombre: Prevención de la mortalidad de la niñez\nDescripción: Prevención de la mortalidad de la niñez y de la desnutrición crónica","Nombre: Consejería para el cuidado infantil\nDescripción: Madre de niño y niña menor de 5 años, que recibe consejería sobre prácticas para el cuidado infantil","Número de madres de niño y niña menor de 5 años beneficiadas con consejería sobre prácticas para el cuidado infantil, al finalizar el año 2026."]
[18,"Bienestar para la gente","ODS 3 Salud y bienestar","PND 2 Acceso a servicios de salud","MED 3 Lograr la cobertura sanitaria universal, en particular la protección contra los riesgos financieros, el acceso a servicios de salud esenciales de calidad y el acceso a medicamentos y vacunas seguros, eficaces, asequibles y de calidad para todos","Para el 2029, se ha disminuido la razón de la mortalidad materna a 69 muertes maternas por cada cien mil nacidos vivos (De 105 muertes en 2019, a 69 muertes maternas por cada cien mil nacidos vivos en 2029)",null,"Para el 2024, se ha disminuido la razón de mortalidad materna en 90 muertes por cada cien mil nacidos vivos, en el municipio XX  (De 108 muertes en 2018, a 90 muertes por cada cien mil nacidos vivos en 2024) (MSPAS)","Para el año 2029, se ha aumentado en XX% la atención especializada con obstetras a las mujeres del municipio de XXX (De XX en el año XXX a XX en el año 2029)","Desarrollo Social","Mujer que recibe atención prenatal oportuna ","Persona",null,"X","Ministerio de Salud Pública y Asistencia Social -MSPAS-","MSPAS","MUNICIPALIDAD ",13,"Nombre: Prevención de la mortalidad\nDescripción: Prevención de la mortalidad",2,"Nombre: Prevención de la mortalidad materna\nDescripción: Prevención de la mortalidad materna","Nombre: Atención prenatal\nDescripción: Mujer que recibe atención prenatal oportuna ","Número de mujeres que reciben atención prenatal oportuna."]
[19,"Bienestar para la gente","ODS 3 Salud y bienestar","PND 2 Acceso a servicios de salud","MED 3 Lograr la cobertura sanitaria universal, en particular la protección contra los riesgos financieros, el acceso a servicios de salud esenciales de calidad y el acceso a medicamentos y vacunas seguros, eficaces, asequibles y de calidad para todos","Para el 2029, se ha disminuido la razón de la mortalidad materna a 69 muertes maternas por cada cien mil nacidos vivos (De 105 muertes en 2019, a 69 muertes maternas por cada cien mil nacidos vivos en 2029)",null,"Para el 2032, se ha disminuido la razón de mortalidad materna en XX muertes por cada cien mil nacidos vivos, en el municipio de XXX (De XXX muertes en 20XX, a XX muertes por cada cien mil nacidos vivos en 20XX) (MSPAS) ","Para el año 2029,  se ha capacitado a  XX% de la población en edad reproductiva, en métodos de planificación familiar, en el municipio de XXX  (De XX% en el año 20XX a XX% en el año 2029)\n\nPara el 2029 se ha reducido en XX% los embarazos en adolescentes,  en el municipio de XXX (De XX% en el año XXX a XX% en el año 2029)  ","Desarrollo Social","Población con acceso a métodos de planificación familiar ","Persona",null,"X","Ministerio de Salud Pública y Asistencia Social -MSPAS-","MSPAS","MUNICIPALIDAD ",13,"Nombre: Prevención de la mortalidad\nDescripción: Prevención de la mortalidad",2,"Nombre: Prevención de la mortalidad materna\nDescripción: Prevención de la mortalidad materna","Nombre: Planificación familiar\nDescripción: Población con acceso a métodos de planificación familiar ","Número de población beneficiada con acceso a métodos de planificación familiar, al finalizar el año 2026."]
[20,"Bienestar para la gente","ODS 3 Salud y bienestar","PND 2 Acceso a servicios de salud","MED 3 Lograr la cobertura sanitaria universal, en particular la protección contra los riesgos financieros, el acceso a servicios de salud esenciales de calidad y el acceso a medicamentos y vacunas seguros, eficaces, asequibles y de calidad para todos","Para el 2029, se ha disminuido la razón de la mortalidad materna a 69 muertes maternas por cada cien mil nacidos vivos (De 105 muertes en 2019, a 69 muertes maternas por cada cien mil nacidos vivos en 2029)",null,"Para el 2032, se ha disminuido la razón de mortalidad materna en XX muertes por cada cien mil nacidos vivos  (De XXX muertes en 20XX, a XX muertes por cada cien mil nacidos vivos en 20XX) (MSPAS) en el municipio de XXX","Para el año 2029 , el XX% de la población en edad reproductiva, ha recibido capacitación en métodos de planificación familiar, en e municipio de XXX\n(De XX% en el año 20XX a XX% en el año 20XX)\n\nPara el 2029 se ha reducido en XX% los embarazos en adolescentes  en el municipio de XXX (De XX% en el año XXX a XX% en el año 20XX)  ","Desarrollo Social","Adolescentes beneficiados con consejería sobre educación integral en sexualidad y entrega de métodos de anticoncepción para adolescentes","Persona",null,"X","Ministerio de Salud Pública y Asistencia Social -MSPAS-","MSPAS","MUNICIPALIDAD ",13,"Nombre: Prevención de la mortalidad\nDescripción: Prevención de la mortalidad",2,"Nombre: Prevención de la mortalidad materna\nDescripción: Prevención de la mortalidad materna","Nombre: Consejería sobre educación integral en sexualidad para adolescentes\nDescripción: Adolescentes beneficiados con consejería sobre educación integral en sexualidad y entrega de métodos de anticoncepción","Número Adolescentes beneficiados con consejería sobre educación integral en sexualidad y entrega de métodos de anticoncepción para adolescentes, al finalizar el año 2026."]
[21,"Bienestar para la gente","ODS 4 Educación de calidad","PND 8 Educación","MED 13 Para 2030, velar porque todas las niñas y todos los niños tengan una enseñanza primaria y secundaria completa, gratuita, equitativa y de calidad que produzca resultados de aprendizajes pertinentes y efectivos","Para el 2029, se ha incrementado a 495% la población que alcanza el nivel satisfactorio y excelente en Lectura y a 515% en Matemática, en niñas y niños del sexto grado del nivel primario (De 474% en 2022 a 495% en 2029, en Lectura; de 507% en 2022 a 515% en 2029, en Matemática)",null,"Para el 2032, se ha incrementado en XX%  el acceso a la educación primaria bilingüe, en  el municipio de XXX (De XX% en 20XX a XXX% en el 2032)","Para el 2029, se ha incrementado en XX% la atención del sistema escolar en el nivel primario bilingüe, incluyendo alimentación escolar, en el municipio de XXX (De XX% en el XXX a XX% en el 2029)","Desarrollo Social","Estudiantes del nivel primario bilingües atendidos en el sistema escolar","Persona",null,"X","Ministerio de Educación -MINEDUC-","MINEDUC","MUNICIPALIDAD ",14,"Nombre: Gestión de la educación local de calidad\nDescripción: Gestión de la educación local de calidad",1,"Nombre: Cobertura de educación primaria\nDescripción: Educación escolar de primaria","Nombre: Primaria bilingüe\nDescripción: Estudiantes del nivel primario bilingües atendidos en el sistema escolar","Número de estudiantes del nivel primario bilingües atendidos en el sistema escolar, al finalizar el año 2026."]
[22,"Bienestar para la gente","ODS 4 Educación de calidad","PND 8 Educación","MED 13 Para 2030, velar porque todas las niñas y todos los niños tengan una enseñanza primaria y secundaria completa, gratuita, equitativa y de calidad que produzca resultados de aprendizajes pertinentes y efectivos","Para el 2029, se ha incrementado a 495% la población que alcanza el nivel satisfactorio y excelente en Lectura y a 515% en Matemática, en niñas y niños del sexto grado del nivel primario (De 474% en 2022 a 495% en 2029, en Lectura; de 507% en 2022 a 515% en 2029, en Matemática)",null,"Para el 2032, se ha incrementado en XX%  el acceso a la educación primaria en  el municipio de XXX (De XX% en 20XX a XXX% en el 2032)","Para el 2029, se ha incrementado en XX% la atención del sistema escolar en el nivel primario monolingüe urbana,  incluyendo alimentación escolar, en el municipio de XXX (De XX% en el XXX a XX% en el 2029)","Desarrollo Social","Estudiantes de primaria monolingüe urbana atendidos en el sistema escolar","Persona",null,"X","Ministerio de Educación -MINEDUC-","MINEDUC","MUNICIPALIDAD ",14,"Nombre: Gestión de la educación local de calidad\nDescripción: Gestión de la educación local de calidad",1,"Nombre: Cobertura de educación primaria\nDescripción: Educación escolar de primaria","Nombre: Primaria monolingüe urbana\nDescripción: Estudiantes de primaria monolingüe urbana atendidos en el sistema escolar","Número de estudiantes de primaria monolingüe urbana atendidos en el sistema escolar, al finalizar el año 2026."]
[23,"Bienestar para la gente","ODS 4 Educación de calidad","PND 8 Educación","MED 13 Para 2030, velar porque todas las niñas y todos los niños tengan una enseñanza primaria y secundaria completa, gratuita, equitativa y de calidad que produzca resultados de aprendizajes pertinentes y efectivos","Para el 2029, se ha incrementado a 495% la población que alcanza el nivel satisfactorio y excelente en Lectura y a 515% en Matemática, en niñas y niños del sexto grado del nivel primario (De 474% en 2022 a 495% en 2029, en Lectura; de 507% en 2022 a 515% en 2029, en Matemática)",null,"Para el 2032, se ha incrementado en XX%  el acceso a la educación primaria en  el municipio de XXX (De XX% en 20XX a XXX% en el 2032)","Para el 2029, se ha incrementado en XX% la atención del sistema escolar en el nivel primario monolingüe rural,  incluyendo alimentación escolar, en el municipio de XXX (De XX% en el XXX a XX% en el 2029)","Desarrollo Social","Estudiantes de primaria monolingüe rural atendidos en el sistema escolar","Persona",null,"X","Ministerio de Educación -MINEDUC-","MINEDUC","MUNICIPALIDAD ",14,"Nombre: Gestión de la educación local de calidad\nDescripción: Gestión de la educación local de calidad",1,"Nombre: Cobertura de educación primaria\nDescripción: Educación escolar de primaria","Nombre: Primaria monolingüe rural\nDescripción: Estudiantes de primaria monolingüe rural atendidos en el sistema escolar","Número de estudiantes de primaria monolingüe rural atendidos en el sistema escolar, al finalizar el año 2026."]
[24,"Bienestar para la gente","ODS 4 Educación de calidad","PND 8 Educación","MED 13 Para 2030, velar porque todas las niñas y todos los niños tengan una enseñanza primaria y secundaria completa, gratuita, equitativa y de calidad que produzca resultados de aprendizajes pertinentes y efectivos",null,"Para el 2025, se ha incrementado la tasa de variación acumulada de la matrícula oficial de preprimaria a 65% (de 22% en 2020 a 65% en 2025)","Para el 2032 se ha incrementado en XX%  el acceso a educación preprimaria para los niños del municipio de XXX (De XX% en el 20XX a XX% en el 2032)","Para el 2029, se ha incrementado en XX% la atención en el sistema escolar en el nivel preprimario del municipio de XXX (De XX% en el año XXX a XX% en el año 2029)","Desarrollo Social","Estudiantes del nivel preprimario atendidos en el sistema escolar","Persona",null,"X","Ministerio de Educación -MINEDUC-","MINEDUC","MUNICIPALIDAD ",14,"Nombre: Gestión de la educación local de calidad\nDescripción: Gestión de la educación local de calidad",2,"Nombre: Cobertura de educación preprimaria\nDescripción: Educación escolar de preprimaria","Nombre: Preprimaria monolingüe\nDescripción: Estudiantes del nivel preprimario atendidos en el sistema escolar","Número de estudiantes del nivel preprimario atendidos en el sistema escolar, al finalizar el año 2026."]
[25,"Bienestar para la gente","ODS 4 Educación de calidad","PND 8 Educación","MED 13 Para 2030, velar porque todas las niñas y todos los niños tengan una enseñanza primaria y secundaria completa, gratuita, equitativa y de calidad que produzca resultados de aprendizajes pertinentes y efectivos","Para el 2029, se ha incrementado a 250% la población que alcanza el nivel satisfactorio y excelente en Lectura y en 243% en Matemática, en jóvenes del tercer grado del ciclo básico del nivel medio (De 242% en 2022 a 25% en 2029, en Lectura; de 163% en 2022 a 243% en 2029, en Matemática)",null,"Para el 2032, se ha incrementado en XX %, el acceso la cobertura de educación básica en  el municipio de XXX \n(De XX% en 2016 a XX% en el 2032)","Para el 2029, se ha incrementado en XX% la atención en el sistema escolar en el nivel básico, del municipio de XX\n(De XX% en el XXX a XX% en el año 2029)","Desarrollo Social","Estudiantes del ciclo básico atendidos en el sistema escolar","Persona",null,"X","Ministerio de Educación -MINEDUC-","MINEDUC","MUNICIPALIDAD ",14,"Nombre: Gestión de la educación local de calidad\nDescripción: Gestión de la educación local de calidad",3,"Nombre: Cobertura de educación básica\nDescripción: Educación escolar básica","Nombre: Educación escolar básica\nDescripción: Estudiantes del ciclo básico atendidos en el sistema escolar","Número de estudiantes del ciclo básico atendidos en el sistema escolar, al finalizar el año 2026."]
[26,"Bienestar para la gente","ODS 4 Educación de calidad","PND 8 Educación","MED 13 Para 2030, velar porque todas las niñas y todos los niños tengan una enseñanza primaria y secundaria completa, gratuita, equitativa y de calidad que produzca resultados de aprendizajes pertinentes y efectivos","Para el 2029, se ha incrementado a 250% la población que alcanza el nivel satisfactorio y excelente en Lectura y en 243% en Matemática, en jóvenes del tercer grado del ciclo básico del nivel medio (De 242% en 2022 a 25% en 2029, en Lectura; de 163% en 2022 a 243% en 2029, en Matemática)",null,"Para el 2032, se ha incrementado en XX %, el acceso la cobertura de educación básica en  el municipio de XXX \n(De XX% en 2016 a XX% en el 2032)","Para el 2029, se ha incrementado en XX% la atención en el sistema escolar en el nivel básico, del municipio de XX\n(De XX% en el XXX a XX% en el año 2029)","Desarrollo Social","Estudiantes del ciclo básico de telesecundaria atendidos en el sistema escolar","Persona",null,"X","Ministerio de Educación -MINEDUC-","MINEDUC","MUNICIPALIDAD ",14,"Nombre: Gestión de la educación local de calidad\nDescripción: Gestión de la educación local de calidad\n13 Educación escolar básica",3,"Nombre: Cobertura de educación básica\nDescripción: Educación escolar básica\n","Nombre: Educación escolar básica telesecundaria\nDescripción: Estudiantes del ciclo básico de telesecundaria atendidos en el sistema escolar","Número de estudiantes del ciclo básico de telesecundaria atendidos en el sistema escolar, al finalizar el año 2026."]
[27,"Bienestar para la gente","ODS 4 Educación de calidad","PND 8 Educación","MED 13 Para 2030, velar porque todas las niñas y todos los niños tengan una enseñanza primaria y secundaria completa, gratuita, equitativa y de calidad que produzca resultados de aprendizajes pertinentes y efectivos",null,"Para el 2025, se ha incrementado la tasa de promoción de los estudiantes en el nivel medio, ciclo diversificado del sector oficial a 90% (de 821% en 2015 a 90% en 2025)","Para el 2032, se ha incrementado el acceso a la educación diversificada en  XX puntos porcentuales en el municipio de XXX (XX% en 2016 a XX% en el 2032)","Para el 2029 se ha aumentado a XX% el número de carreras a nivel diversificado para ampliar la oferta educativa a los adolescentes en el municipio de XXX (De XX% en el año XXX a XX% en el año 2029)","Desarrollo Social","Establecimientos del ciclo diversificado atendidos con gratuidad","Entidad",null,"X","Ministerio de Educación -MINEDUC-","MINEDUC","MUNICIPALIDAD ",14,"Nombre: Gestión de la educación local de calidad\nDescripción: Gestión de la educación local de calidad",4,"Nombre: Cobertura de educación diversificada\nDescripción: Educación escolar diversificada","Nombre: Educación escolar diversificada gratuita\nDescripción: Establecimientos del ciclo diversificado atendidos con gratuidad","Número de Establecimientos del ciclo diversificado atendidos con gratuidad, al finalizar el año 2026."]
[28,"Bienestar para la gente","ODS 4 Educación de calidad","PND 8 Educación","MED 13 Para 2030, velar porque todas las niñas y todos los niños tengan una enseñanza primaria y secundaria completa, gratuita, equitativa y de calidad que produzca resultados de aprendizajes pertinentes y efectivos","Para el 2029, se ha disminuido en 46 puntos porcentuales el analfabetismo en personas de 15 años en adelante (De 160% en 2023 a 114% en 2029)",null,"Para el 2032 se ha reducido el analfabetismo en XX% en el municipio de XXX \n(De XX% en el año XXX a XX% enel año XXX)","Para el 2029,  se ha reducido el XX% el analfabetismo  en la población de 15 años en adelante, en el municipio de XXXXX\n(De  XXX% en al año XXX a XX% en el año 2029)","Desarrollo Social","Personas de 15 años en adelante atendidas en idioma español","Persona",null,"X","Comité Nacional de Alfabetización -CONALFA-","CONALFA","MUNICIPALIDAD ",14,"Nombre: Gestión de la educación local de calidad\nDescripción: Gestión de la educación local de calidad",5,"Nombre: Reducción del analfabetismo\nDescripción: Reducción del analfabetismo","Nombre: Personas alfabetizadas en el idioma español\nDescripción: Personas de 15 años en adelante atendidas en idioma español","Número de personas con 15 años en adelante atendidas en idioma español, al finalizar el año 2026."]
[29,"Bienestar para la gente","ODS 4 Educación de calidad","PND 8 Educación","MED 13 Para 2030, velar porque todas las niñas y todos los niños tengan una enseñanza primaria y secundaria completa, gratuita, equitativa y de calidad que produzca resultados de aprendizajes pertinentes y efectivos","Para el 2029, se ha disminuido en 46 puntos porcentuales el analfabetismo en personas de 15 años en adelante (De 160% en 2023 a 114% en 2029)",null,"Para el 2032,  se ha reducido en XX% el analfabetismo en la población de 15 años en adelante, por medio de la educación bilingüe intercultural en XX% en el municipio de XXX (De XX% en el año XXX a XX%  en el año XXX)","Para el 2029, se ha reducido en XX%  el analfabetismo en la población de 15 años en adelante, por medio de la educación bilingüe intercultural, en el municipio de XX (De XXX% en al año XXX a XX% en el año 2029)","Desarrollo Social","Personas de 15 años en adelante atendidas en idioma Maya, Garífuna y Xinca","Persona",null,"X","Comité Nacional de Alfabetización -CONALFA-","CONALFA","MUNICIPALIDAD ",14,"Nombre: Gestión de la educación local de calidad\nDescripción: Gestión de la educación local de calidad",5,"Nombre: Reducción del analfabetismo\nDescripción: Reducción del analfabetismo","Nombre:  Personas alfabetizadas en idioma Maya, Garífuna y Xinca\nDescripción: Personas de 15 años en adelante atendidas en idioma Maya, Garífuna y Xinca","Número de personas con 15 años en adelante atendidas en idioma Maya, Garífuna y Xinca, al finalizar el año 2026."]
[30,"Bienestar para la gente","ODS 4 Educación de calidad","PND 8 Educación","MED 13 Para 2030, velar porque todas las niñas y todos los niños tengan una enseñanza primaria y secundaria completa, gratuita, equitativa y de calidad que produzca resultados de aprendizajes pertinentes y efectivos",null,"Para el 2025, se ha reducido la tasa de deserción escolar en 05 (de 45 en 2021 a 40 en 2025)","Para el 2032, se ha incrementado en XX%  el acceso a la educación primaria en  el municipio de XXX (De XX% en 20XX a XXX% en el 2032)","Para el 2029, se ha incrementado en XX% de niños que cursan el nivel primario atendidos con alimentación escolar, en el municipio de XXX (De XX% en el XXX a XX% en el 2029)","Desarrollo Social","Estudiantes del nivel preprimario de establecimientos que prestan servicios educativos gratuitos atendidos con alimentación escolar\n\n","Persona",null,"X","Ministerio de Educación -MINEDUC-","MINEDUC","MUNICIPALIDAD ",14,"Nombre: Gestión de la educación local de calidad\nDescripción: Gestión de la educación local de calidad",6,"Nombre: Apoyo para el consumo adecuado de alimentos\nDescripción: Apoyo para el consumo adecuado de alimentos","Nombre: Alimentación escolar nivel preprimario\nDescripción: Estudiantes del nivel preprimario de establecimientos que prestan servicios educativos gratuitos atendidos con alimentación escolar","Número de estudiantes del nivel preprimario de establecimientos que prestan servicios educativos gratuitos atendidos con alimentación escolar, al finalizar el año 2026."]
[31,"Bienestar para la gente","ODS 4 Educación de calidad","PND 8 Educación","MED 13 Para 2030, velar porque todas las niñas y todos los niños tengan una enseñanza primaria y secundaria completa, gratuita, equitativa y de calidad que produzca resultados de aprendizajes pertinentes y efectivos",null,"Para el 2025, se ha reducido la tasa de deserción escolar en 05 (de 45 en 2021 a 40 en 2025)","Para el 2032, se ha incrementado en XX%  el acceso a la educación primaria en  el municipio de XXX (De XX% en 20XX a XXX% en el 2032)","Para el 2029, se ha incrementado en XX% de niños que cursan el nivel primario atendidos con alimentación escolar, en el municipio de XXX (De XX% en el XXX a XX% en el 2029)","Desarrollo Social","Estudiantes del nivel primario de establecimientos que prestan servicios educativos \ngratuitos atendidos con alimentación escolar\n\n","Persona",null,"X","Ministerio de Educación -MINEDUC-","MINEDUC","MUNICIPALIDAD ",14,"Nombre: Gestión de la educación local de calidad\nDescripción: Gestión de la educación local de calidad",6,"Nombre: Apoyo para el consumo adecuado de alimentos\nDescripción: Apoyo para el consumo adecuado de alimentos","Nombre: Alimentación escolar nivel primario\nDescripción: Estudiantes del nivel primario de establecimientos que prestan servicios educativos \ngratuitos atendidos con alimentación escolar","Número de estudiantes del nivel primario de establecimientos que prestan servicios educativos gratuitos atendidos con alimentación escolar, al finalizar el año 2026."]
[32,"Bienestar para la gente","ODS 4 Educación de calidad","PND 8 Educación","MED 13 Para 2030, velar porque todas las niñas y todos los niños tengan una enseñanza primaria y secundaria completa, gratuita, equitativa y de calidad que produzca resultados de aprendizajes pertinentes y efectivos",null,"Para el 2025, se ha incrementado la atención a niños con desarrollo integral temprano en 21,937 (de 35,663 en 2022 a 57,600 en 2025)","Para el 2032 se ha incrementado en XX%  el acceso a educación de primera infancia  del municipio de XXXXX\n(De XX% en el  20XX a XX% en el 2032)\nPrimera infancia 0 a 5 años OMS","Para el año 2029, se ha incrementado en xx% de niños que reciben atención en centros educativos especializados en primera infancia en el municipio de XXXXX\n(De XX% en el año XXXX a XX% en el año 2029)","Desarrollo Social","Niños de primera infancia de 0 a 3 años atendidos en aprendizaje temprano\n\n","Persona",null,"X","Ministerio de Educación -MINEDUC-","MINEDUC","MUNICIPALIDAD ",14,"Nombre: Gestión de la educación local de calidad\nDescripción: Gestión de la educación local de calidad",7,"Nombre: Educación inicial\nDescripción: Educación inicial","Nombre: Aprendizaje temprano\nDescripción: Descripción: Niños de primera infancia de 0 a 3 años atendidos en aprendizaje temprano","Número de niños de primera infancia de 0 a 3 años atendidos en aprendizaje temprano, al finalizar el año 2026."]
[33,"Bienestar para la gente","ODS 4 Educación de calidad","PND 8 Educación","MED 13 Para 2030, velar porque todas las niñas y todos los niños tengan una enseñanza primaria y secundaria completa, gratuita, equitativa y de calidad que produzca resultados de aprendizajes pertinentes y efectivos",null,"Para el 2027, se ha incrementado en 200% la matrícula de los Programas de Educación Extraescolar de todos los sectores, (de 55,170 estudiantes en 2022 a 66,204 estudiantes al 2027)","Para el 2032  ha incrementado en XX%  el número de población que tiene acceso a los Centros Municipales de Capacitación y Formación Humana en el  municipio de XXX (De XX% en el  20XX a XX% en el 2032)","Para el 2029 se cuenta con XXX centros municipales de Capacitación y Formación Humana en el municipio de  XXX (De XX CEMUCAF en e l año XXX a XX en el año 2029)","Desarrollo Social","Estudiantes del Programa Centros Municipales de Capacitación y Formación Humana (CEMUCAF), atendidos en áreas técnico-laborales","Persona",null,"X","Ministerio de Educación -MINEDUC-","MINEDUC","MUNICIPALIDAD ",14,"Nombre: Gestión de la educación local de calidad\nDescripción: Gestión de la educación local de calidad",8,"Nombre: Educación extraescolar\nDescripción extraescolar","Nombre: CEMUCAF\nDescripción: Estudiantes del Programa Centros Municipales de Capacitación y Formación Humana (CEMUCAF), atendidos en áreas técnico-laborales","Número de estudiantes del Programa Centros Municipales de Capacitación y Formación Humana (CEMUCAF), atendidos en áreas técnico-laborales, al finalizar el año 2026."]
[34,"Bienestar para la gente","ODS 4 Educación de calidad","PND 8 Educación","MED 13 Para 2030, velar porque todas las niñas y todos los niños tengan una enseñanza primaria y secundaria completa, gratuita, equitativa y de calidad que produzca resultados de aprendizajes pertinentes y efectivos",null,"Educación superior\n(Sin resultado estratégico)","Para el 2032, se ha incrementado el acceso a la educación superior en  XX puntos porcentuales en el municipio de XXX (XX% en 2016 a XX% en el 2032)","Para el 2029, se ha incrementado el acceso a la educación superior en  XX puntos porcentuales, en el municipio de XXX (XX% en 2016 a XX% en el 2029)",null,"Estudiantes atendidos en educación superior","Persona",null,"x","Universidad de San Carlos de Guatemala -USAC-","USAC","MUNICIPALIDAD ",14,"Nombre: Gestión de la educación local de calidad\nDescripción: Gestión de la educación local de calidad",10,"Nombre: Educación superior\nDescripción: Educación superior","Nombre: Educación superior\nDescripción: Estudiantes atendidos en educación superior","Número de estudiantes atendidos en educación superior, al finalizar el año 2026."]
[35,"Riqueza para todas y todos","ODS 8 Trabajo decente y crecimiento económico","PND 5 Empleo e inversión","MED 8 Para 2030, elaborar y poner en práctica políticas encaminadas a promover un turismo sostenible que cree puestos de trabajo y promueva la cultura y los productos locales",null,"Para el 2027, algunos atractivos de 4 destinos turísticos priorizados, se han fomentado y desarrollado de manera integral, diversificando la oferta turística","Para el 2023 se ha aumentado en XX% el número de visitantes en el municipio de XXX  (De XX% en el año XXX a XX% en el año 2032)","Para el 2029,  se ha aumentado en XX %  las acciones para la conservación de su patrimonio tangible e intangible, el municipio de XXX  (De 0% en el año XXX  a XX% en el año 2029)","Avance para Disminuir la Brecha Digital con Tecnología e Innovación","Actividades para la conservación del patrimonio y atractivos turísticos en beneficio de personas individuales y jurídicas en Guatemala\n\n","Evento",null,"X","Instituto Guatemalteco de Turismo -INGUAT-","INGUAT","MUNICIPALIDAD ",15,"Nombre: Incremento a la competitividad turística\nDescripción: Incremento a la competitividad turística",1,"Nombre: Incremento de la competitividad\nDescripción: Incremento de la competitividad","Nombre: Conservación del patrimonio\nDescripción: Actividades para la conservación y  del patrimonio y atractivos turísticos en beneficio de personas individuales y jurídicas en Guatemala","Número de eventos realizados relacionados con Actividades para la conservación del patrimonio y atractivos turísticos en beneficio de personas individuales y jurídicas en Guatemala, al finalizar el año 2026."]
[36,"Riqueza para todas y todos","ODS 8 Trabajo decente y crecimiento económico","PND 5 Empleo e inversión","MED 8 Para 2030, elaborar y poner en práctica políticas encaminadas a promover un turismo sostenible que cree puestos de trabajo y promueva la cultura y los productos locales",null,"Para el 2027, el ingreso de divisas ha incrementado en 21% respecto al año 2019, por el aumento del posicionamiento turístico de Guatemala, como producto de la inversión en acciones de mercadeo  (campañas nacionales, campañas internacionales, viajes de fam & press, ferias, caravanas, material promocional e información turística)","En el 2032,  se ubica entre las 10 primeras posiciones de lugares turísticos para visitar  a nivel nacional, reconocido por el INGUAT, el municipio de XXXX (De la posición XXX en el año XXXX a la posición XXX en el año XXXX)","En el 2029,  se ubica entre las 10 primeras posiciones de lugares turísticos para visitar  a nivel nacional, reconocido por el INGUAT, el municipio de XXXX (De la posición XXX en el año XXXX a la posición XXX en el año XXXX)","Avance para Disminuir la Brecha Digital con Tecnología e Innovación","Promoción de destinos turísticos de Guatemala a nivel nacional e internacional\n\n","Evento",null,"X","Instituto Guatemalteco de Turismo -INGUAT-","INGUAT","MUNICIPALIDAD ",15,"Nombre: Incremento a la competitividad turística\nDescripción: Incremento a la competitividad turística",2,"Nombre: Promoción del potencial turístico en Guatemala\nDescripción: Promoción del potencial turístico en Guatemala","Nombre: Promoción turística\nDescripción: Promoción de destinos turísticos de Guatemala a nivel nacional e internacional","Número de eventos realizados relacionados con Promoción de destinos turísticos de Guatemala a nivel nacional e internacional, al finalizar el año 2026."]
[37,"Bienestar para la gente","ODS 1 Fin de la pobreza ","PND 1 Reducción de la Pobreza y Protección Social","MED 102 Para 2030, potenciar y promover la inclusión social, económica y política de todos, independientemente de su edad, sexo,  discapacidad, raza, etnia, origen, religión o situación económica u otra condición ","Para el 2029, se ha disminuido en 100% el déficit habitacional en familias a nivel nacional (De 753,140 en 2024 a 677,826 familias en el 2029)",null,"Para el año 2032,  se ha incrementado en XX% el número de personas atendidas que se encuentran en situación de pobreza y pobreza extrema en el municipio de XXX (De XX% en el año  XXX a XX% en el año 2032)","Para el 2029, el XX% de familias en situación de pobreza y pobreza extrema han sido atendidas con programas de acceso y/o mejora a la  vivienda, en el municipio de XXXX\n(De XX% en el año XXXX a XX% en el año )","Desarrollo Social","Familias beneficiadas con subsidios para la vivienda","FAMILIA ",null,"X","Ministerio de Comunicaciones, Infraestructura y Vivienda -CIV-","CIV","MUNICIPALIDAD ",16,"Nombre: Reducción del déficit habitacional\nDescripción: Desarrollo de la vivienda",0,"\nNombre: Sin Subprograma\nDescripción: Sin subprograma","Nombre: Familias con subsidios de vivienda\nDescripción: Familias beneficiadas con subsidios para la vivienda","Número de familias beneficiadas con subsidios para la vivienda."]
[38,"Estado garante de los derechos humanos y conductor del desarrollo","ODS 16 Paz, Justicia e instituciones sólidas","PND 7 Fortalecimiento institucional, seguridad y justicia","MED 12 Crear instituciones eficaces, responsables y transparentes a todos los niveles","Para el 2029, se ha disminuido en 84 puntos la tasa de delitos cometidos contra el patrimonio de las personas (De 554 en 2023 a 470 en 2029 por cada cien mil habitantes)",null,"Para el 2032, se ha disminuido en XX puntos el número de hechos delictivos en el municipio de XXX (De XX en 2020 a XX en 2032)","Para el 2029, se ha disminuido en XX% las áreas (zonas) identificadas con mayor incidencia criminal de delitos cometidos contra el patrimonio, en el municipio XXX (De XX% en el año XXX a XX% en el año 2029)","Seguridad Democrática en un país","Seguridad preventiva y del delito en áreas de mayor incidencia criminal","Evento",null,"X","Ministerio de Gobernación -MINGOB-","MINGOB","MUNICIPALIDAD ",17,"\nNombre: Seguridad integral\nDescripción: Seguridad integral",1,"\nNombre: Prevención de hechos delictivos contra el patrimonio\nDescripción: Prevención de hechos delictivos contra el patrimonio","Nombre: Seguridad preventiva y del delito\nDescripción: Seguridad preventiva y del delito en áreas de mayor incidencia criminal","Número de eventos realizados relacionados con Seguridad preventiva y del delito en áreas de mayor incidencia criminal, al finalizar el año 2026."]
[39,"Estado garante de los derechos humanos y conductor del desarrollo","ODS 16 Paz, Justicia e instituciones sólidas","PND 7 Fortalecimiento institucional, seguridad y justicia","MED 12 Crear instituciones eficaces, responsables y transparentes a todos los niveles","Para el 2029, se ha disminuido en 6 puntos la tasa de hechos de tránsito (De 153 en el 2023 a 93 en 2029 por cada diez mil vehículos)",null,"Para el 2032, se ha disminuido en XX puntos el número de hechos delictivos en el municipio de XXX (De XX en 2020 a XX en 2032)","Para el 2029, se ha disminuido en XX% el número de homicidios de las áreas (zonas) identificadas con mayor incidencia criminal, del municipio de XXX (De XX% en el año XXX a XX% en el año 2029)","Seguridad Democrática en un país","Programas de Educación y Seguridad Vial","Evento",null,"X","Ministerio de Gobernación -MINGOB-","MINGOB","MUNICIPALIDAD ",17,"\nNombre: Seguridad integral\nDescripción: Seguridad integral",3,"\nNombre: Disminución de hechos de tránsito\nDescripción: Disminución de hechos de tránsito","Nombre: Programas de Educación y Seguridad Vial\nDescripción: Programas de Educación y Seguridad Vial","Número de programas de educación y seguridad vial."]
[40,"Estado garante de los derechos humanos y conductor del desarrollo","ODS 16 Paz, Justicia e instituciones sólidas","PND 7 Fortalecimiento institucional, seguridad y justicia","MED 12 Crear instituciones eficaces, responsables y transparentes a todos los niveles",null,"Para el 2029, se ha incrementado la implementación de Políticas Públicas Municipales de Prevención de la Violencia y el Delito en 48 municipios a nivel nacional a través de estrategias, políticas, planes, programas y proyectos de prevención de la violencia y el delito (De 262 municipios en 2023 a 310 municipios en 2029) ","Para el 2032, se ha disminuido en XX puntos el número de hechos delictivos en el municipio de XXX (De XX en 2020 a XX en 2032)","Para el 2029,  se han implementado XX programas de actividades municipales para la prevención de la violencia, en el municipio de XXXXX   (De XX% en el año XXX a XX% en el año 2029)","Seguridad Democrática en un país","Niños, niñas, adolescentes y jóvenes en situación de riesgo social reciben servicios de orientación sobre prevención de la violencia","Persona",null,"X","Ministerio de Gobernación -MINGOB-","MINGOB","MUNICIPALIDAD ",17,"Nombre: Seguridad integral\nDescripción: Seguridad integral",8,"\nNombre: Prevención de la violencia y del delito\nDescripción: Prevención de la violencia y del delito","Nombre: Prevención de la violencia en niños, adolescentes y jóvenes\nDescripción: Niños, niñas, adolescentes y jóvenes en situación de riesgo social reciben servicios de orientación sobre prevención de la violencia","Número de Niños, niñas, adolescentes y jóvenes en situación de riesgo social reciben servicios de orientación sobre prevención de la violencia, al finalizar el año 2026."]
[41,"Estado garante de los derechos humanos y conductor del desarrollo","ODS 16 Paz, Justicia e instituciones sólidas","PND 7 Fortalecimiento institucional, seguridad y justicia","MED 12 Crear instituciones eficaces, responsables y transparentes a todos los niveles"," ","Para el 2029, se ha incrementado la implementación de Políticas Públicas Municipales de Prevención de la Violencia y el Delito en 48 municipios a nivel nacional a través de estrategias, políticas, planes, programas y proyectos de prevención de la violencia y el delito (De 262 municipios en 2023 a 310 municipios en 2029) ","Para el año 2032 se ha disminuido en XX% la incidencia criminal en el municipio de XXX (De XX% en el año XXX a XX% en el año 2032)","Para el año XXX el XX% de población del municipio de XXX,  beneficiados con el patrimonio bibliográfico y documental (De XX en el año XXX a XX en el año XXX)","Seguridad Democrática en un país","Asesoría y acompañamiento policial a mujeres victimas de la violencia","Evento"," ","X","Ministerio de Gobernación -MINGOB-","MINGOB","MUNICIPALIDAD ",17,"Nombre: Seguridad integral\nDescripción: Seguridad integral",8,"Nombre: Prevención de la violencia y del delito\nDescripción: Prevención de la violencia y del delito","Nombre: Protección y atención a mujeres victimas de violencia\nDescripción: Asesoría y acompañamiento policial a mujeres victimas de la violencia","Número de eventos realizados relacionados con Asesoría y acompañamiento policial a mujeres victimas de la violencia, al finalizar el año 2026."]
[42,"Estado garante de los derechos humanos y conductor del desarrollo","ODS 16 Paz, Justicia e instituciones sólidas","PND 7 Fortalecimiento institucional, seguridad y justicia","Sin vinculación",null,"Para el 2029, se ha incrementado el promedio nacional (1554)  de la Gestión Estratégica Municipal, en función de sus competencias (De categoría \"baja\" en 2021 a categoría \"media baja\" en 2029, considerando la Medición del Desempeño de la Gestión Municipal)","Para el 2032, se ha incrementado en XX%  la cobertura de alumbrado público  en el municipio de XXX (De XX en 2020 a XX en 2032)","Para el 2029 se ha aumentado en XX% las áreas (zonas), que cuentan con alumbrado público, del municipio de XXX (De XX% en el año XXX a XX% en el año XXX)","Hacia una Función Pública, Legítima y Eficaz","Personas beneficiadas con áreas del municipio urbano y rural con ampliación, reposición y mejoramiento de alumbrado público \n\n","Metro cuadrado","X",null,"MUNICIPALIDAD ","MUNICIPALIDAD ","MUNICIPALIDAD ",17,"Nombre: Seguridad integral\nDescripción: Seguridad integral",9,"Nombre: Gestión estratégica municipal en alumbrado público\nDescripción: Gestión estratégica municipal en alumbrado público","Nombre: Áreas con alumbrado público\nDescripción: Personas beneficiadas con áreas del municipio urbano y rural con ampliación, reposición y mejoramiento de alumbrado público ","Número de personas beneficiadas con la ampliación, reposición y mejoramiento del alumbrado público en áreas del municipio urbano y rural, al finalizar el año 2026."]
[43,"Estado garante de los derechos humanos y conductor del desarrollo","ODS 16 Paz, Justicia e instituciones sólidas","PND 7 Fortalecimiento institucional, seguridad y justicia","MED 12 Crear instituciones eficaces, responsables y transparentes a todos los niveles","Para el 2029, se ha incrementado en 12 puntos de tasa de atención a las denuncias por violencia contra la mujer (De 1446 en 2023 a 1566 en 2029 por cada cien mil mujeres) ",null,"Para el 2032, se ha disminuido en XX puntos el número de hechos delictivos en el municipio de XXX (De XX en 2020 a XX en 2032)","Para el 2029, se han implementado XX programas de actividades municipales para la prevención de la violencia, en el municipio de XXXXX \n (De XX% en el año XXX a XX% en el año 2029)","Seguridad Democrática en un país","Personas capacitadas, informadas y asistidas para prevenir y disminuir la violencia intrafamiliar","persona",null,"X","Ministerio de Gobernación -MINGOB-","MINGOB","MUNICIPALIDAD,MP, SVET",17,"Nombre: Seguridad integral\nDescripción: Seguridad integral",10,"Nombre: Prevención de la violencia intrafamiliar\nDescripción: Prevención de la violencia intrafamiliar","Nombre: Disminución de la violencia intrafamiliar\nDescripción: Personas capacitadas, informadas y asistidas para prevenir y disminuir la violencia intrafamiliar","Número de personas capacitadas, informadas y asistidas para prevenir y disminuir la violencia intrafamiliar, al finalizar el año 2026."]
[44,"Recursos naturales hoy y para el futuro","ODS 15 Vida de ecosistemas terrestres ","PND 3 Acceso al agua y gestión de los recursos naturales","MED 5 Para 2020, promover la ordenación sostenible de todos los tipos de bosques, poner fin a la deforestación, recuperar los bosques degradados e incrementar la forestación y la reforestación","Para el 2029, se ha mantenido la cobertura forestal en 333 por ciento a nivel nacional (De 333% en 2020 a 333% en 2029)",null,"Para el 2032, se han incrementado XX ha conservadas, de las áreas protegidas del municipio XXXX\n(De XX ha en el año XXXX a XX ha en el año 2032)","Para el 2029, se han incrementado XX ha conservadas, de las áreas protegidas del municipio XXX\n(De XX ha en el año XXX a XX ha en el año 2029)","Cuidado de la Naturaleza\n\n","Prevención, protección, conservación y mantenimiento de las áreas protegidas","Hectárea",null,"X","Consejo Nacional de Áreas Protegidas -CONAP-","CONAP","MUNICIPALIDAD ",18,"Nombre: Ambiente y recursos naturales\nDescripción: Ambiente y recursos naturales",1,"Nombre: Cobertura Forestal\nDescripción: Cobertura Forestal para la protección, conservación, restauración para el uso sostenible del sistema Guatemalteco de áreas protegidas en el marco de la gobernanza","Nombre: Ecosistemas protegidos y restaurados\nDescripción: Prevención, protección, conservación y mantenimiento de las áreas protegidas","Cantidad de hectáreas gestionadas para Prevención, protección, conservación y mantenimiento de las áreas protegidas, al finalizar el año 2026."]
[45,"Recursos naturales hoy y para el futuro","ODS 15 Vida de ecosistemas terrestres ","PND 3 Acceso al agua y gestión de los recursos naturales","MED 5 Para 2020, promover la ordenación sostenible de todos los tipos de bosques, poner fin a la deforestación, recuperar los bosques degradados e incrementar la forestación y la reforestación","Para el 2029, se ha mantenido la cobertura forestal en 333 por ciento a nivel nacional (De 333% en 2020 a 333% en 2029)",null,null,null,"Cuidado de la Naturaleza\n\n","Bosques naturales, plantaciones y sistemas agroforestales bajo manejo forestal,  proveen bienes y servicios ambientales a la población","Hectáreas",null,"X","INAB","INAB","MUNICIPALIDAD ",18,"Nombre: Ambiente y recursos naturales\nDescripción: Ambiente y recursos naturales",1,"Nombre: Cobertura Forestal\nDescripción: Cobertura Forestal para la protección, conservación, restauración para el uso sostenible del sistema Guatemalteco de áreas protegidas en el marco de la gobernanza","Nombre: Recursos forestales manejados\nDescripción: Bosques naturales, plantaciones y sistemas agroforestales bajo manejo forestal,  proveen bienes y servicios ambientales a la población","Cantidad de hectáreas gestionadas para Bosques naturales, plantaciones y sistemas agroforestales bajo manejo forestal,  proveen bienes y servicios ambientales a la población, al finalizar el año 2026."]
[46,"Recursos naturales hoy y para el futuro","ODS 15 Vida de ecosistemas terrestres ","PND 3 Acceso al agua y gestión de los recursos naturales","MED 5 Para 2020, promover la ordenación sostenible de todos los tipos de bosques, poner fin a la deforestación, recuperar los bosques degradados e incrementar la forestación y la reforestación","Para el 2029, se ha mantenido la cobertura forestal en 333 por ciento a nivel nacional (De 333% en 2020 a 333% en 2029)",null,"Para el 2032, se ha mantenido/incrementado en XX%  la cobertura forestal del territorio en el municipio de XXX (De XX% en el año XXX a XX% en el año XXX)","Para el 2029, se ha mantenido/incrementado en XX%  la cobertura forestal del territorio, en el municipio de XXX (De XX% en el año XXX a XX% en el año XX)","Cuidado de la Naturaleza\n\n","Áreas municipales reforestadas, protegidas, viveros forestales municipales, cuidado de la biodiversidad (flora y fauna) ","hectáreas","X",null,"MUNICIPALIDAD ","MUNICIPALIDAD ","MUNICIPALIDAD ",18,"Nombre: Ambiente y recursos naturales\nDescripción: Ambiente y recursos naturales",1,"Cobertura Forestal","Nombre: Ecosistemas municipales, conservados y restaurados\nDescripción: Áreas municipales reforestadas, protegidas, viveros forestales municipales, cuidado de la biodiversidad (flora y fauna) ","Cantidad de hectáreas gestionadas para Áreas municipales reforestadas, protegidas, viveros forestales municipales, cuidado de la biodiversidad (flora y fauna), al finalizar el año 2026."]
[47,"Recursos naturales hoy y para el futuro","ODS 7 Energía asequible y no contaminante","PND 3 Acceso al agua y gestión de los recursos naturales","Sin vinculación\n\n","Para el 2028, se ha incrementado en 961 puntos porcentuales los hogares con acceso a energía eléctrica asequible, limpia y renovable (De 9039% en 2023 a 100% en 2028)",null,"Para el 2032, se ha incrementado a XX% de GW/h la energía renovable en la matriz energética en el municipio XXX (de XXX% en XXX a XXX% en 2032)","Para el 2029, se han implementado XX proyectos de energía renovable, en el municipio de XXXXX\n(De XX en el XXX a XX en el 2029)",null,"Autorización de proyectos de generación de energías renovables","GW/h",null,"X","Ministerio de Energía y Minas","MEM","MUNICIPALIDAD ",18,"Nombre: Ambiente y recursos naturales\nDescripción: Ambiente y recursos naturales\n18 Ambiente y Recursos Naturales",3,"Nombre: Incremento de la matriz energética renovable\nDescripción: Incremento de la matriz energética renovable","Nombre: Autorización de proyectos de generación de energías renovables\nDescripción: Autorización de proyectos de generación de energías renovables","Cantidad de energía generada en GW/h mediante Autorización de proyectos de generación de energías renovables, al finalizar el año 2026."]
[48,"Recursos naturales hoy y para el futuro","ODS 7 Energía asequible y no contaminante","PND 3 Acceso al agua y gestión de los recursos naturales","MED 5 Para 2020, promover la ordenación sostenible de todos los tipos de bosques, poner fin a la deforestación, recuperar los bosques degradados e incrementar la forestación y la reforestación","Para el 2028, se ha incrementado en 961 puntos porcentuales los hogares con acceso a energía eléctrica asequible, limpia y renovable (De 9039% en 2023 a 100% en 2028)",null,"Para el 2032, se ha incrementado a XX% la población sensibilizada en temas de energías renovables en el municipio XXX (de XX% en XXX a XX% en 2032)","Para el 2029, se ha incrementado a XX% la población sensibilizada en temas de energías renovables, en el municipio XXXX (de XX% en XXXX a XX% en 2029)",null,"Promoción de proyectos de generación de energías renovables","Hogares",null,"X","Ministerio de Energía y Minas","MEM","MUNICIPALIDAD ",18,"Nombre: Ambiente y recursos naturales\nDescripción: Ambiente y recursos naturales",3,"Nombre: Incremento de la matriz energética renovable\nDescripción: Incremento de la matriz energética renovable","Nombre: Proyectos de generación de energías renovables\nDescripción: Promoción de proyectos de generación de energías renovables","Número de hogares beneficiados con Promoción de proyectos de generación de energías renovables, al finalizar el año 2026."]
[49,"Recursos naturales hoy y para el futuro","ODS 15 Vida de ecosistemas terrestres ","PND 3 Acceso al agua y gestión de los recursos naturales","MED 4 Para 2030, lograr la ordenación sostenible y el uso eficiente de los recursos naturales \n\n",null,"Para el año 2027 se ha incrementado en un 15% la participación de la población en programas educativos relacionados a medio ambiente (De 15% en 2021 a 30% en 2027)","Para el 2032 el XX% de la población ha sido sensibilizada y capacitada en el manejo sostenible de los recursos naturales, del municipio de XXX \n(De XX%  en el año XXX a XX% en el año 2032)","Para el 2029, se ha incremento a  XX% de la población sensibilizada en el manejo sostenible de los recursos naturales, del municipio de XXXXX\n(De XX%  en el año XXXX a XX% en el año 2029)\n","Cuidado de la Naturaleza\n\n","Personas capacitadas y sensibilizadas en temas relacionados con la conservación y protección del recurso hídrico en Guatemala\n\n","Persona ",null,"X","Ministerio de Ambiente y Recursos Naturales -MARN-","MARN","MUNICIPALIDAD ",18,"Nombre: Ambiente y recursos naturales\nDescripción: Ambiente y recursos naturales",7,"Nombre: Sensibilización y concientización ambiental\nDescripción: Sensibilización y concientización ambiental","Nombre: Personas capacitadas y sensibilizadas en temas de conservación y protección del recurso hídrico\nDescripción: Personas capacitadas y sensibilizadas en temas relacionados con la conservación y protección del recurso hídrico en Guatemala","Número de personas capacitadas y sensibilizadas en temas relacionados con la conservación y protección del recurso hídrico en Guatemala, al finalizar el año 2026."]
[50,"Recursos naturales hoy y para el futuro","ODS 15 Vida de ecosistemas terrestres ","PND 3 Acceso al agua y gestión de los recursos naturales","MED 4 Para 2030, lograr la ordenación sostenible y el uso eficiente de los recursos naturales \n\n",null,"Para el año 2027 se ha incrementado en un 15% la participación de la población en programas educativos relacionados a medio ambiente (De 15% en 2021 a 30% en 2027)","Para el 2032 el XX% de la población a ha sido sensibilizada y capacitada en el manejo sostenible de los recursos naturales, del municipio de XXX  (De XX%  en el año XXX a XX% en el año 2032)","Para el 2029, se ha incremento a  XX% de la población sensibilizada en el manejo sostenible de los recursos naturales, del municipio de XXXXX\n(De XX%  en el año XXXX a XX% en el año 2029)\n","Cuidado de la Naturaleza\n\n","Personas sensibilizadas y con concientización ambiental con énfasis de género y multiculturalidad ","Persona ",null,"X","Ministerio de Ambiente y Recursos Naturales -MARN-","MARN","MUNICIPALIDAD ",18,"Nombre: Ambiente y recursos naturales\nDescripción: Ambiente y recursos naturales",7,"Nombre: Sensibilización y concientización ambiental\nDescripción: Sensibilización y concientización ambiental","Nombre: Concientización ambiental con énfasis en genero y multiculturalidad\nDescripción: Personas sensibilizadas y con concientización ambiental con énfasis de género y multiculturalidad ","Número de personas sensibilizadas y con concientización ambiental con énfasis de género y multiculturalidad, al finalizar el año 2026."]
[51,"Recursos naturales hoy y para el futuro","ODS 13 Acción por el clima","PND 1 Reducción de la Pobreza y Protección Social","MED 4 Para 2030, lograr la ordenación sostenible y el uso eficiente de los recursos naturales \n\n",null,"Para el 2027, se ha incrementado en 300 puntos porcentuales las acciones de eficiencia en los procesos de gestión ambiental, implementado medidas de cambio climático (de 20% en 2021 a500% en 2027)",null,"Para 2027, se han mantenido en 5% los controles ambientales para prevenir el deterioro del ambiente y los recursos naturales a nivel nacional (De 15% en 2021 a 20% en 2027) ","Cuidado de la Naturaleza\n\n","Personas beneficiadas con acciones para la adaptación al Cambio Climático en Guatemala","Persona",null,"X","MARN","MARN","MUNICIPALIDAD ",18,"Nombre: Ambiente y recursos naturales\nDescripción: Ambiente y recursos naturales",8,"Nombre: Adaptación al cambio clirmático\nDescripción: Adaptación al cambio climático","Nombre: Acciones para la adaptación de cambio climático\nDescripción: Personas beneficiadas con acciones para la adaptación al Cambio Climático en Guatemala","Número de personas beneficiadas con acciones para la adaptación al Cambio Climático en Guatemala, al finalizar el año 2026."]
[52,"Guatemala Urbana y Rural","ODS 11 Ciudades y comunidades sostenibles ","PND 10 Ordenamiento Territorial","MED 15 El 100% de los municipios cuentan con planes de ordenamiento territorial integral que se implementan satisfactoriamente","Al final del 2029 el 268 % de los municipios implementan los Planes de Desarrollo Municipal y Ordenamiento Territorial PDM-OT (De 0% en 2018 a 2688% en 2024)",null,"Para el año 2032, el municipio XXX  ha incrementado en XX% la infraestructura vial (De XX% en el año XX a XX% al año 2032)","Para el año 2029, el municipio XXX  ha incrementado en XX% la infraestructura vial (De XX% en el año XX a XX% al año 2025)",null,"Áreas con ordenamiento vial ","Metro Cuadrado","X",null,"MUNICIPALIDAD ","MUNICIPALIDAD ","MUNICIPALIDAD ",19,"Nombre: Movilidad urbana y espacios públicos\nDescripción: Movilidad urbana y espacios públicos",1,"Nombre: Desarrollo Municipal y Ordenamiento Territorial\nDescripción: Desarrollo Municipal y Ordenamiento Territorial","Nombre: Áreas con ordenamiento vial \nDescripción: Áreas con ordenamiento vial ","Cantidad de metros cuadrados gestionados para el ordenamiento vial, al finalizar el año 2026."]
[53,"Guatemala Urbana y Rural","ODS 11 Ciudades y comunidades sostenibles ","PND 10 Ordenamiento Territorial","MED 15 El 100% de los municipios cuentan con planes de ordenamiento territorial integral que se implementan satisfactoriamente","Al final del 2029 el 268 % de los municipios implementan los Planes de Desarrollo Municipal y Ordenamiento Territorial PDM-OT (De 0% en 2018 a 2688% en 2024)",null,"Para el 2032, se ha incrementado XX las áreas públicas del municipio de XXX han sido establecidos (De un XXX en el año XXX a XXX en el año 2032)","Para el 2029, se ha incrementado XX las áreas públicas del municipio de XXX han sido establecidos (De un XXX en el año XXX a XXX en el año 2025) ",null,"Areas de uso urbano regulado","m2","X",null,"MUNICIPALIDAD ","MUNICIPALIDAD ","MUNICIPALIDAD ",19,"Nombre: Movilidad urbana y espacios públicos\nDescripción: Movilidad urbana y espacios públicos",1,"Nombre: Desarrollo Municipal y Ordenamiento Territorial\nDescripción: Desarrollo Municipal y Ordenamiento Territorial","Nombre: Áreas de uso urbano regulado\nDescripción: Áreas de uso urbano regulado","Cantidad de metros cuadrados gestionados para Areas de uso urbano regulado, al finalizar el año 2026."]
[54,"Guatemala Urbana y Rural","ODS 11 Ciudades y comunidades sostenibles ","PND 10 Ordenamiento Territorial","MED 15 El 100% de los municipios cuentan con planes de ordenamiento territorial integral que se implementan satisfactoriamente","Al final del 2029 el 268 % de los municipios implementan los Planes de Desarrollo Municipal y Ordenamiento Territorial PDM-OT (De 0% en 2018 a 2688% en 2024)",null,"Para el 2032, se ha regulado el XX% del transporte público y  se cuenta con XX áreas públicas de apoyo a la movilidad, en el municipio de XXX  (De un XX% en el año XXX a un XXXX% en 2032)","Para el 2029, se ha regulado el XX% del transporte público y  se cuenta con XX áreas públicas de apoyo a la movilidad, en el municipio de XXX\n (De un XX% en el año XXX a un XXXX% en 2029)","La Infraestructura Económica para el Buen Vivir","Personas beneficiadas con regulación del transporte de pasajeros y carga, y sus terminales locales","Persona","X",null,"MUNICIPALIDAD ","MUNICIPALIDAD ","MUNICIPALIDAD ",19,"Nombre: Movilidad urbana y espacios públicos\nDescripción: Movilidad urbana y espacios públicos",1,"Nombre: Desarrollo Municipal y Ordenamiento Territorial\nDescripción: Desarrollo Municipal y Ordenamiento Territorial","Nombre: Transporte público regulado\nDescripción: Personas beneficiadas con regulación del transporte de pasajeros y carga, y sus terminales locales","Número de personas beneficiadas con regulación del transporte de pasajeros y carga, y sus terminales locales, al finalizar el año 2026."]
[55,"Estado garante de los derechos humanos y conductor del desarrollo","ODS 16 Paz, Justicia e instituciones sólidas","PND 10 Ordenamiento Territorial","MED 16 En 2032 los gobiernos municipales alcanzan una mayor capacidad de gestión para atender las necesidades y demandas de la ciudadanía","Para el 2029, se ha incrementado en 36 puntos porcentuales los gobiernos locales que mejoran la gestión municipal en función de sus competencias   (De 14%  en categorias media  a alta en  2016 a 50% en 2024, según el Ranking de la gestión municipal)",null,"Para el 2032, el municipio XXX ha incrementado XX% su posición en el indicador 0404 del ranking de la gestión municipal (de XX% en en el año 2020 - 2021 a XX% en el año 2032)","Para el 2029, el municipio XXX ha incrementado XX% su posición en el indicador 0404 del ranking de la gestión municipal (de XX% en en el año 2020 - 2021 a XX% en el año 2025)",null,"Recurso humano capacitado y fortalecido en gestión municipal","Persona","X",null,"MUNICIPALIDAD ","MUNICIPALIDAD ","MUNICIPALIDAD ",19,"Nombre: Movilidad urbana y espacios públicos\nDescripción: Movilidad urbana y espacios públicos",2,"Nombre: Mejora de la gestión municipal\nDescripción: Mejora de la gestión municipal","Nombre: Recurso humano capacitado y fortalecido en gestión municipal\nDescripción: Recurso humano capacitado y fortalecido en gestión municipal","Número de personas  capacitadas y fortalecidas en gestión municipal, al finalizar el año 2026."]
[56,"Estado garante de los derechos humanos y conductor del desarrollo","ODS 16 Paz, Justicia e instituciones sólidas","PND 7 Fortalecimiento institucional, seguridad y justicia","MED 12 Crear instituciones eficaces, responsables y transparentes a todos los niveles","Para el 2029, se ha incrementado en 36 puntos porcentuales los gobiernos locales que mejoran la gestión municipal en función de sus competencias   (De 14%  en categorias media  a alta en  2016 a 50% en 2024, según el Ranking de la gestión municipal)",null,"Para el 2032 se cuenta con equipamiento en las áreas urbanas del municipio de XXXXXX,  para el desarrollo de Capacidades Técnicas, tecnológicas y culturales de los habitantes\n(De un XXX en el año XXXX a XXX en el año 2032) ","Para el 2029 se cuenta con equipamiento en las áreas urbanas del municipio de XXXXXX,  para el desarrollo de Capacidades Técnicas, tecnológicas y culturales de los habitantes\n(De un XXX en el año XXXX a XXX en el año 2029) ","Hacia una Función Pública, Legítima y Eficaz","Personas atendidas en bibliotecas y mediatecas municipales","Persona","X",null,"MUNICIPALIDAD","MUNICIPALIDAD ","MUNICIPALIDAD ",19,"Nombre: Movilidad urbana y espacios públicos\nDescripción: Movilidad urbana y espacios públicos",2,"Nombre: Mejora de la gestión municipal\nDescripción: Mejora de la gestión municipal","Nombre: Administración de la biblioteca pública\nDescripción: Personas atendidas en bibliotecas y mediatecas municipales","Número de personas atendidas en bibliotecas y mediatecas municipales, al finalizar el año 2026."]
[57,"Estado garante de los derechos humanos y conductor del desarrollo","ODS 16 Paz, Justicia e instituciones sólidas","PND 7 Fortalecimiento institucional, seguridad y justicia","MED 12 Crear instituciones eficaces, responsables y transparentes a todos los niveles","Para el 2029, se ha incrementado en 36 puntos porcentuales los gobiernos locales que mejoran la gestión municipal en función de sus competencias   (De 14%  en categorias media  a alta en  2016 a 50% en 2024, según el Ranking de la gestión municipal)",null,"Para el 2032, se ha incrementado XX%  la calidad en la gestión administrativa, en el municipio xxx (de XX puntos en 2020-2021 a XX en XX año) y en XX% en la gestión de la información a la ciudadanía (de XX puntos en 2020-2021 a XX en el año 2032)","Para el 2029,  ha incrementado XX%  la calidad en la gestión administrativa (de XX puntos en 2020-2021 a XX en XX año) y en XX% en la gestión de la información a la ciudadanía, en el municipio XXX  (de XX puntos en 2020-2021 a XX en el año XX) ","Hacia una Función Pública, Legítima y Eficaz","Personas atendidas con calidad en los servicios municipales","Persona","X",null,"MUNICIPALIDAD ","MUNICIPALIDAD ","MUNICIPALIDAD ",19,"Nombre: Movilidad urbana y espacios públicos\nDescripción: Movilidad urbana y espacios públicos",2,"Nombre: Mejora de la gestión municipal\nDescripción: Mejora de la gestión municipal","Nombre: Servicios públicos municipales\nDescripción: Personas atendidas con calidad en los servicios municipales","Número de personas atendidas con calidad en los servicios municipales, al finalizar el año 2026."]
[58,"Guatemala Urbana y Rural","ODS 11 Ciudades y comunidades sostenibles ","PND 10 Ordenamiento Territorial","MED 15 El 100% de los municipios cuentan con planes de ordenamiento territorial integral que se implementan satisfactoriamente",null,"Para el 2029, se ha disminuido en 6 puntos la tasa de hechos de tránsito (De 153 en 2023 a 93 en 2029 por cada diez\nmil vehículos)","Para el año 2032, se ha incrementado/mejorado en XX% el equipamiento vinculado a la movilidad, del municipio XXX (De XX% en el año XX a XX% al año 2032)","Para el año 2029, se ha incrementado/mejorado en XX% el equipamiento vinculado a la movilidad, del municipio XXX (De XX% en el año XX a XX% al año 2029)","La Infraestructura Económica para el Buen Vivir","Personas beneficiadas con conjunto de normas medidas, servicios y señales que regulan el tránsito de vehículos y peatones en las vías públicas\n\n","Persona","X",null,"MUNICIPALIDAD ","MUNICIPALIDAD ","MUNICIPALIDAD ",19,"Nombre: Movilidad urbana y espacios públicos\nDescripción: Movilidad urbana y espacios públicos",3,"Nombre: Disminución de hechos de tránsito\nDescripción: Disminución de hechos de tránsito","Nombre: Ordenamiento Vial\nDescripción: Personas beneficiadas con conjunto de normas medidas, servicios y señales que regulan el tránsito de vehículos y peatones en las vías públicas","Número de personas beneficiadas con conjunto de normas medidas, servicios y señales que regulan el tránsito de vehículos y peatones en las vías públicas, al finalizar el año 2026."]
[59,"Guatemala Urbana y Rural","ODS 11 Ciudades y comunidades sostenibles ","PND 10 Ordenamiento Territorial","MED 15 El 100% de los municipios cuentan con planes de ordenamiento territorial integral que se implementan satisfactoriamente",null,"Para el 2029, se ha incrementado el promedio nacional (1554)  de la Gestión Estratégica Municipal, en función de sus competencias (De categoría \"baja\" en 2021 a categoría \"media baja\" en 2029,  considerando la Medición del Desempeño de la Gestión Municipal))","Para el 2032, se ha incrementado en XX m2 las áreas de parques, jardínes y lugares de recreación  gestionadas para su mejora, el municipio XXX\n(De un XXX en el año XXX a XXX en el año 2032)","Para el 2029, se ha incrementado en XX m2 las áreas de parques, jardínes y lugares de recreación  gestionadas para su mejora, en el municipio (De un XXX en el año XXX a XXX en el año 2029)","La Infraestructura Económica para el Buen Vivir","Control de la contaminación ambiental (Denuncias por contaminación Auditiva, Visual y Basureros auditivos) en el municipio","Evento","X",null,"MUNICIPALIDAD","MUNICIPALIDAD","MUNICIPALIDAD",19,"Nombre: Movilidad urbana y espacios públicos\nDescripción: Movilidad urbana y espacios públicos",4,"Nombre: Gestión estratégica municipal\nDescripción: Gestión estratégica municipal","Control de la contaminación ambiental (Auditiva y Visual) en el municipio","Número de eventos realizados relacionados con Control de la contaminación ambiental (Denuncias por contaminación Auditiva, Visual y Basureros auditivos) en el municipio, al finalizar el año 2026."]
[60,"Guatemala Urbana y Rural","ODS 11 Ciudades y comunidades sostenibles ","PND 10 Ordenamiento Territorial","MED 15 El 100% de los municipios cuentan con planes de ordenamiento territorial integral que se implementan satisfactoriamente",null,null,"Para el 2032, se ha incrementado en las áreas de parques, jardines y lugares de recreación, del municipio","Para el 2029, se ha incrementado en XX m2 las áreas de parques, jardines y lugares de recreación, del municipio XXX (De un XXX en el año XXX a XXX en el año 2029)","La Infraestructura Económica para el Buen Vivir","Promoción y gestión de parques, jardines y lugares de recreación\n\n","Metros cuadrado","X",null,"MUNICIPALIDAD ","MUNICIPALIDAD ","MUNICIPALIDAD ",19,"Nombre: Movilidad urbana y espacios públicos\nDescripción: Movilidad urbana y espacios públicos",5,"Nombre: Parques, jardines y recreación\nDescripción: Parques, jardines y recreación","Nombre: Gestión de áreas para la recreación\nDescripción: Personas beneficiadas con promoción y gestión de parques, jardines y lugares de recreación","Cantidad de metros cuadrados gestionados para Promoción y gestión de parques, jardines y lugares de recreación, al finalizar el año 2026."]
[61,"Guatemala Urbana y Rural","ODS 11 Ciudades y comunidades sostenibles ","PND 10 Ordenamiento Territorial","MED 15 El 100% de los municipios cuentan con planes de ordenamiento territorial integral que se implementan satisfactoriamente",null,null,"Para el 2032, se han implementado instrumentos de regulación territorial, en el municipio","Para el 2029, se han implementado instrumentos de regulación territorial, en el municipio XXX  (De un XXX reglamentos en el año XXX a XXX reglamentos en el año 2029)","Desarrollo Social","Personas beneficiadas con autorización de las licencias de construcción, modificación y demolición de obras públicas\no privadas, en la circunscripción del municipio\n\n","Persona","X",null,"MUNICIPALIDAD ","MUNICIPALIDAD ","MUNICIPALIDAD ",19,"Nombre: Movilidad urbana y espacios públicos\nDescripción: Movilidad urbana y espacios públicos",6,"Nombre: Regulación territorial\nDescripción: Regulación territorial","Nombre: Uso urbano regulado\nDescripción: Personas beneficiadas con autorización de las licencias de construcción, modificación y demolición de obras públicas\no privadas, en la circunscripción del municipio","Número de personas beneficiadas con autorización de las licencias de construcción, modificación y demolición de obras públicas o privadas, en la circunscripción del municipio, al finalizar el año 2026."]
[62,"Guatemala Urbana y Rural","ODS 11 Ciudades y comunidades sostenibles ","PND 7 Fortalecimiento institucional, seguridad y justicia","MED 12 Crear instituciones eficaces, responsables y transparentes a todos los niveles",null,null,"Para el 2032, se han implementado instrumentos de regulación territorial, en el municipio","Para el 2029, se han implementado instrumentos de regulación territorial, en el municipio XXX  (De un XXX reglamentos en el año XXX a XXX reglamentos en el año 2029)","Hacia una Función Pública, Legítima y Eficaz","Personas individuales y jurídicas beneficiadas con monitoreo y licencias que regulan los medios de difusión ","Persona","X",null,"MUNICIPALIDAD","MUNICIPALIDAD ","MUNICIPALIDAD ",19,"Nombre: Movilidad urbana y espacios públicos\nDescripción: Movilidad urbana y espacios públicos",6,"Nombre: Regulación territorial\nDescripción: Regulación territorial","Nombre: Control de la contaminación Auditiva en el municipio\nDescripción: Personas individuales y jurídicas beneficiadas con monitoreo y licencias que regulan los medios de difusión ","Número de personas individuales y jurídicas beneficiadas con monitoreo y licencias que regulan los medios de difusión, al finalizar el año 2026."]
[63,"Guatemala Urbana y Rural","ODS 11 Ciudades y comunidades sostenibles ","PND 10 Ordenamiento Territorial","MED 15 El 100% de los municipios cuentan con planes de ordenamiento territorial integral que se implementan satisfactoriamente",null,null,"Para el 2032, se han implementado instrumentos de regulación territorial, en el municipio","Para el 2029, se han implementado instrumentos de regulación territorial, en el municipio XXX  (De un XXX reglamentos en el año XXX a XXX reglamentos en el año 2029)","La Infraestructura Económica para el Buen Vivir","Personas beneficiadas con delimitación del área o áreas que puedan ser autorizadas para el funcionamiento de: expendio de alimentos y bebidas, hospedaje, higiene o arreglo personal, recreación, cultura y otros que por su naturaleza estén abiertos al público","Persona","X",null,"MUNICIPALIDAD","MUNICIPALIDAD ","MUNICIPALIDAD ",19,"Nombre: Movilidad urbana y espacios públicos\nDescripción: Movilidad urbana y espacios públicos",6,"Nombre: Regulación territorial\nDescripción: Regulación territorial","Nombre: Establecimientos abiertos regulados\nDescripción: Personas beneficiadas con delimitación del área o áreas que puedan ser autorizadas para el funcionamiento de: expendio de alimentos y bebidas, hospedaje, higiene o arreglo personal, recreación, cultura y otros que por su naturaleza estén abiertos al público","Número de personas beneficiadas con delimitación del área o áreas que puedan ser autorizadas para el funcionamiento de: expendio de alimentos y bebidas, hospedaje, higiene o arreglo personal, recreación, cultura y otros que por su naturaleza estén abiertos al público, al finalizar el año 2026."]
[64,"Guatemala Urbana y Rural","ODS 11 Ciudades y comunidades sostenibles ","PND 10 Ordenamiento Territorial","MED 15 El 100% de los municipios cuentan con planes de ordenamiento territorial integral que se implementan satisfactoriamente",null,null,"Para el 2032, se ha regulado el transporte público y  se cuenta con áreas públicas de apoyo a la movilidad, en el municipio","Para el 2029, se ha regulado el XX% del transporte público y  se cuenta con XX áreas públicas de apoyo a la movilidad, en el municipio de XXX\n (De un XX% en el año XXX a un XXXX% en 2029)","La Infraestructura Económica para el Buen Vivir","Personas beneficiadas con regulación del transporte de pasajeros y carga, y sus terminales locales;\n\n","Persona","X",null,"MUNICIPALIDAD ","MUNICIPALIDAD ","MUNICIPALIDAD ",19,"Nombre: Movilidad urbana y espacios públicos\nDescripción: Movilidad urbana y espacios públicos",7,"Nombre: Regulación del transporte público\nDescripción: Regulación del transporte público","Nombre: Transporte público regulado\nDescripción: Personas beneficiadas con regulación del transporte de pasajeros y carga, y sus terminales locales;","Número de personas beneficiadas con regulación del transporte de pasajeros y carga, y sus terminales locales;, al finalizar el año 2026."]
[65,"Estado garante de los derechos humanos y conductor del desarrollo","ODS 16 Paz, Justicia e instituciones sólidas","PND 7 Fortalecimiento institucional, seguridad y justicia","MED 12 Crear instituciones eficaces, responsables y transparentes a todos los niveles",null,null,"Para el 2032, se ha incrementado la calidad en la gestión administrativa, en el municipio y en la gestión de la información a la ciudadanía","Para el 2029,  ha incrementado XX%  la calidad en la gestión administrativa (de XX puntos en 2020-2021 a XX en XX año) y en XX% en la gestión de la información a la ciudadanía, en el municipio XXX  (de XX puntos en 2020-2021 a XX en el año XX) ","Hacia una Función Pública, Legítima y Eficaz","Personas beneficiadas por medio de procesos de modernización tecnológica en servicios municipales","Persona","X",null,"MUNICIPALIDAD ","MUNICIPALIDAD ","MUNICIPALIDAD ",19,"Nombre: Movilidad urbana y espacios públicos\nDescripción: Movilidad urbana y espacios públicos",8,"Nombre: Calidad en la gestión administrativa\nDescripción: Calidad en la gestión administrativa","Nombre: Modernización tecnológica municipal\nDescripción: Personas beneficiadas por medio de procesos de modernización tecnológica en servicios municipales","Número de personas beneficiadas por medio de procesos de modernización tecnológica en servicios municipales, al finalizar el año 2026."]
[66,"Guatemala Urbana y Rural","ODS 11 Ciudades y comunidades sostenibles ","PND 5 Empleo e inversión","MED 6 En 2032, el crecimiento del PIB real ha sido paulatino y sostenido, hasta alcanzar una tasa no menor del 54%: a) Rango entre 34 y 44% en el quinquenio 2015-2020 b) Rango entre 44 y 54% en el quinquenio 2021-2025 c) No menor del 54% en los siguientes años, hasta llegar a 2032",null,null,"Para el 2032 se ha ampliado/mejorado la infraestructura de la red vial en las áreas urbanas del municipio","Para el 2029 se ha ampliado/mejorado en un XX%  la infraestructura de la red vial en las áreas urbanas del municipio de XXXXX (De XX % en XXXX a XXX% en 2029)","La Infraestructura Económica para el Buen Vivir","Personas beneficiadas con construcción, ampliación, mejoramiento, reposición y mantenimiento de vías urbanas","Persona","x",null,"MUNICIPALIDAD ","MUNICIPALIDAD ","MUNICIPALIDAD ",19,"Nombre: Movilidad urbana y espacios públicos\nDescripción: Movilidad urbana y espacios públicos",9,"Nombre: Insfraestructura de la red vial en áreas urbanas\nDescripción: Infraestructura d ela red vial en áreas urbanas","Nombre: Pavimentación de las vías públicas urbanas y mantenimiento de las mismas\nDescripción: Personas beneficiadas con construcción, ampliación, mejoramiento, reposición y mantenimiento de vías urbanas","Número de personas beneficiadas con contrucción, ampliación, mejoramiento, reposición y mantenimiento de vías urbanas, al finalizar el año 2026."]
[67,"Guatemala Urbana y Rural","ODS 11 Ciudades y comunidades sostenibles ","PND 1 Reducción de la Pobreza y Protección Social","MED 2 Implementar a nivel nacional sistemas y medidas apropiados de protección social para todos, incluidos niveles mínimos y, de aquí a 2030, lograr una amplia cobertura de las personas pobres y vulnerables",null,null,"Para 2032, implementa proyectos de generación de energía, en el municipio","Para 2029, implementa XX proyectos de generación de energía, en el municipio de XXXX (De un XXX en el año XXXX a XXX en el año 2029)","La Infraestructura Económica para el Buen Vivir","Familias beneficiadas con generación de la energía eléctrica necesaria para cubrir el consumo municipal y privado","familia","x",null,"MUNICIPALIDAD ","MUNICIPALIDAD ","MUNICIPALIDAD ",19,"Nombre: Movilidad urbana y espacios públicos\nDescripción: Movilidad urbana y espacios públicos",10,"Nombre: Proyectos de generación de energía eléctrica\nDescripción: Proyectos de generación de energía eléctrica","Nombre: Generación de energía eléctrica municipal\nDescripción: Familias beneficiadas con generación de la energía eléctrica necesaria para cubrir el consumo municipal y privado","Número de familias beneficiadas con generación de la energía eléctrica necesaria para cubrir el consumo municipal y privado, al finalizar el año 2026."]
[68,"Guatemala Urbana y Rural","ODS 11 Ciudades y comunidades sostenibles ","PND 10 Ordenamiento Territorial","MED 15 El 100% de los municipios cuentan con planes de ordenamiento territorial integral que se implementan satisfactoriamente",null,"Para el año 2024, 40 municipios, o sea el 1176% del total de municipios del país, contarán con una base predial municipal para uso multifinalitario","Para el 2032 el xx% del territorio del municipio de XXX cuenta con su levantamiento de información catastral (De 0% en el año 20XX a XX% en el año 2032)","Al 2025 el municipio de XXX inicia su proceso de levantamiento para establecer una Base Inmobiliaria Georeferenciada (De 0 en el XXX a  1 en el 2025)","Avance para Disminuir la Brecha Digital con Tecnología e Innovación","Mantenimiento y actualización del catastro municipal","Evento",null,"X","MUNICIPALIDAD ","MUNICIPALIDAD ","MUNICIPALIDAD ",19,"Nombre: Movilidad urbana y espacios públicos\nDescripción: Movilidad urbana y espacios públicos",11,"Nombre: Sin Subprograma\nDescripción: Sin subprograma","Nombre: Mantenimiento y actualización del catastro municipal\nDescripción: Mantenimiento y actualización del catastro municipal","Número de eventos realizados relacionados con Mantenimiento y actualización del catastro municipal, al finalizar el año 2026."]
[69,"Riqueza para todas y todos","ODS 1 Fin de la pobreza ","PND 1 Reducción de la Pobreza y Protección Social","MED 1 Para 2030, potenciar y promover la inclusión social, económica y política de todos, independientemente de su edad, sexo,  discapacidad, raza, etnia, origen, religión o situación económica u otra condición","Para el 2029, se ha incrementado en 250% la cobertura de programas sociales destinados a personas en pobreza y vulnerabilidad (De 5,555,640 en 2023 a 6,944,550 en 2029)",null,"Para el 2032, se ha incrementado  el XX% de personas beneficiadas con alimentos en el municipio XXXXXX que viven en pobreza y pobreza extrema  (De XX en el año a XX en el año XXXX)","Para el 2029, se ha incrementado  el XX% de personas beneficiadas con alimentos en el municipio XXXXXX que viven en pobreza y pobreza extrema  (De XX en el año a XX en el año XXXX)","Desarrollo Social","Personas en pobreza y pobreza extrema beneficiadas con dotación de alimentos\n\n","Persona",null,"X","Ministerio de Desarrollo Social -MIDES-","MIDES","MUNICIPALIDAD ",20,"Nombre: Protección social\nDescripción: Protección social",1,"Nombre: Programas sociales\nDescripción: Sin subprograma","Nombre: Personas beneficiadas con alimentos\nDescripción: Personas en pobreza y pobreza extrema beneficiadas con dotación de alimentos","Número de personas con pobreza y pobreza extrema beneficiadas con dotación de alimentos, al finalizar el año 2026."]
[70,"Bienestar para la gente","ODS 1 Fin de la pobreza ","PND 1 Reducción de la Pobreza y Protección Social","MED 1 Para 2030, potenciar y promover la inclusión social, económica y política de todos, independientemente de su edad, sexo,  discapacidad, raza, etnia, origen, religión o situación económica u otra condición","Para el 2029, se ha incrementado en 250% la cobertura de programas sociales destinados a personas en pobreza y vulnerabilidad (De 5,555,640 en 2023 a 6,944,550 en 2029)",null,"Para el 2032,  se ha incrementado en XX el número de niños y niñas en situación de pobreza y pobreza extrema  que han recibido atención integral, en hogares comunitarios en el municipio de XXXXXX\n (de XXX niños y niñas en el XXXXX a XXXX niños y niñas a 2032)","Para el 2029,  se ha incrementado en XX el número de niños y niñas en situación de pobreza y pobreza extrema  que han recibido atención integral, en hogares comunitarios en el municipio de XXXXXX (de XXX niños y niñas en el XXXXX a XXXX niños y niñas a 2029)","Protección, Asistencia y Seguridad Social","Niños y niñas de 6 meses a 7 años de edad en situación de pobreza y pobreza extrema beneficiados con atención integral","Persona",null,"X","Secretaria de Obras Sociales de la Esposa del Presidente --SOSEP-","SOSEP","MUNICIPALIDAD ",20,"Nombre: Protección social\nDescripción: Protección social",1,"Nombre: Programas sociales\nDescripción: Sin subprograma","Nombre: Niños con atención integral\nDescripción:  Niños y niñas de 6 meses a 7 años de edad en situación de pobreza y pobreza extrema beneficiados con atención integral","Número de niños y niñas de 6 meses a 7 años de edad en situación de pobreza y pobreza extrema beneficiados con atención integral, al finalizar el año 2026."]
[71,"Bienestar para la gente","ODS 1 Fin de la pobreza ","PND 1 Reducción de la Pobreza y Protección Social","MED 1 Para 2030, potenciar y promover la inclusión social, económica y política de todos, independientemente de su edad, sexo,  discapacidad, raza, etnia, origen, religión o situación económica u otra condición",null,"Para el año 2029, se ha incrementado en 41% el servicio de asistencia y promoción social dirigido a 56,745 personas en condición de pobreza o extrema pobreza","Para el 2032 se aumenta en XX% el porcentaje de mujeres que han sido capacitadas y beneficiadas con programas  de emprendimiento, en el municipio de XXX (De XX% en XXX a XX% en 2032)","Para el 2029, se ha aumentado en XX% el porcentaje de mujeres que han sido capacitadas y beneficiadas con programas  de emprendimiento, en el municipio de XXX (De XX% ene l año XXX a XX% en el año 2029)","Protección, Asistencia y Seguridad Social","Mujeres beneficiadas con capacitación, asistencia técnica en proyectos productivos y empresariales","Persona",null,"X","Secretaria de Obras Sociales de la Esposa del Presidente --SOSEP-","SOSEP","MUNICIPALIDAD ",20,"Nombre: Protección social\nDescripción: Protección social",2,"Nombre: Obras sociales\nDescripción: Obras sociales","Nombre: Mujeres capacitadas en proyectos productivos y empresariales\nDescripción: Mujeres beneficiadas con capacitación, asistencia técnica en proyectos productivos y empresariales","Número de mujeres beneficiadas con capacitación, asistencia técnica en proyectos productivos y empresariales, al finalizar el año 2026."]
[72,"Bienestar para la gente","ODS 1 Fin de la pobreza ","PND 1 Reducción de la Pobreza y Protección Social","MED 1 Para 2030, potenciar y promover la inclusión social, económica y política de todos, independientemente de su edad, sexo,  discapacidad, raza, etnia, origen, religión o situación económica u otra condición",null,"Para el año 2029, se ha incrementado en 41% el servicio de asistencia y promoción social dirigido a 56,745 personas en condición de pobreza o extrema pobreza","Para el año 2032, se ha incrementado en XX% el número de personas atendidas que se encuentran en situación de pobreza y pobreza extrema, en el municipio de XXX (De XX% en el año  XXX a XX% en el año 2032)","Para el año 2029,  se ha incrementado en XX% el número de adultos mayores que han recibido atención integral, en el municipio de XXX (De XX% en el XXX a XX% en el año 2029) ","Protección, Asistencia y Seguridad Social","Adultos mayores en condición de pobreza y pobreza extrema beneficiados con atención integral","Persona",null,"X","Secretaria de Obras Sociales de la Esposa del Presidente --SOSEP-","SOSEP","MUNICIPALIDAD ",20,"Nombre: Protección social\nDescripción: Protección social",2,"Nombre: Obras sociales\nDescripción: Obras sociales","Nombre: Adultos mayores con atención integral\nDescripción: Adultos mayores en condición de pobreza y pobreza extrema beneficiados con atención integral","Número de Adultos mayores en condición de pobreza y pobreza extrema beneficiados con atención integral, al finalizar el año 2026."]
[73,"Bienestar para la gente","ODS 3 Salud y bienestar","PND 2 Acceso a servicios de salud","MED 3 Lograr la cobertura sanitaria universal, en particular la protección contra los riesgos financieros, el acceso a servicios de salud esenciales de calidad y el acceso a medicamentos y vacunas seguros, eficaces, asequibles y de calidad para todos",null,"Prevención y control de ITS, VIH/SIDA","Para el año 2032 se ha ampliado el acceso al servicio de salud en un XX %  en el municipio de XXX (De un XX% en el año XXX a un XXX% en el año 2032)","Para el año 2029, se ha ampliado el acceso al servicio de salud en un XX % en personas atendidas con programas de atención a la prevención y control de ITS, VIH/SIDA en el municipio de XXX (De un XX% en el año XXX a un XX% en el año 2029)","Desarrollo Social","Persona atendidas para la prevención de ITS, VIH/SIDA \n\n","Persona",null,"X","Ministerio de Salud Pública y Asistencia Social -MSPAS-","MSPAS","MUNICIPALIDAD ",21,"Nombre: Apoyo a la salud preventiva\nDescripción: Apoyo a la salud preventiva",1,"Nombre: Prevención de control de\nITS, VIH / SIDA\nDescripción: Prevención y control de ITS, VIH/SIDA","Nombre: Diagnóstico y tratamiento ITS, VIH/SIDA\nDescripción: Persona atendidas para la prevención de ITS, VIH/SIDA ","Número de personas beneficiadas con para la prevención de ITS, VIH/SIDA, al finalizar el año 2026."]
[74,"Bienestar para la gente","ODS 3 Salud y bienestar","PND 2 Acceso a servicios de salud","MED 3 Lograr la cobertura sanitaria universal, en particular la protección contra los riesgos financieros, el acceso a servicios de salud esenciales de calidad y el acceso a medicamentos y vacunas seguros, eficaces, asequibles y de calidad para todos","Para el 2029, se ha disminuido en 480% la mortalidad por Tuberculosis (De 25 por cada 100,000 habitantes en 2015 a 13 por cada 100,000 habitantes en 2029)",null,"Para el año 2032 se ha ampliado el acceso al servicio de salud en un XX %  en el municipio de XXX (De un XX% en el año XXX a un XXX% en el año 2032)","Para el año 2029, se ha reducido en XX% el número  de  casos de tuberculosis respiratoria, en el municipio XXX (De  XX% en el año XXX a un XX% en el año 2029)","Desarrollo Social","Persona con diagnóstico de la tuberculosis que recibe tratamiento","Persona",null,"X","Ministerio de Salud Pública y Asistencia Social -MSPAS-","MSPAS","MUNICIPALIDAD ",21,"Nombre: Apoyo a la salud preventiva\nDescripción: Apoyo a la salud preventiva",2,"Nombre: Prevención y control de la tuberculosis\nDescripción: Prevención y control de la tuberculosis","Nombre: Diagnóstico de la tuberculosis\nDescripción: Persona con diagnóstico de la tuberculosis que recibe tratamiento","Número de personas beneficiadas con diagnóstico de la tuberculosis que recibe tratamiento, al finalizar el año 2026."]
[75,"Bienestar para la gente","ODS 3 Salud y bienestar","PND 2 Acceso a servicios de salud","MED 3 Lograr la cobertura sanitaria universal, en particular la protección contra los riesgos financieros, el acceso a servicios de salud esenciales de calidad y el acceso a medicamentos y vacunas seguros, eficaces, asequibles y de calidad para todos",null,"Para el 2029, se ha eliminado en 1000% la malaria en Guatemala (De 3,018 casos en 2018 a 0 casos en 2029)","Para el año 2032 se ha ampliado el acceso al servicio de salud en un XX %  en el municipio de XXX (De un XX% en el año XXX a un XXX% en el año 2032)","Para el año 2029, se ha incrementado en XX% las personas atendidas y beneficiadas con acciones de prevención, control y vigilancia de enfermedades zoonóticas y vectoriales, en el municipio XXX (De XX% en el año XXX a XX% en el año 2029)","Desarrollo Social","Persona beneficiada con acciones de prevención, control y vigilancia de la malaria","Persona",null,"X","Ministerio de Salud Pública y Asistencia Social -MSPAS-","MSPAS","MUNICIPALIDAD ",21,"Nombre: Apoyo a la salud preventiva\nDescripción: Apoyo a la salud preventiva",3,"Nombre: Prevención y control de las enfermedades vectoriales y zoonóticas\nDescripción: Prevención y control de las enfermedades vectoriales y zoonóticas","Nombre: Persona beneficiada con acciones de prevención, control y vigilancia de la malaria\nDescripción: Persona beneficiada con acciones de prevención, control y vigilancia de la malaria","Número de personas beneficiadas con acciones de prevención, control y vigilancia de la malaria, al finalizar el año 2026."]
[76,"Bienestar para la gente","ODS 3 Salud y bienestar","PND 2 Acceso a servicios de salud","MED 3 Lograr la cobertura sanitaria universal, en particular la protección contra los riesgos financieros, el acceso a servicios de salud esenciales de calidad y el acceso a medicamentos y vacunas seguros, eficaces, asequibles y de calidad para todos",null,"La población guatemalteca goza de salud, las enfermedades infecciosas, parasitarias y las crónico-degenerativas han disminuido y son tratadas eficientemente","Para el año 2032 se ha ampliado el acceso al servicio de salud en un XX %  en el municipio de XXX (De un XX% en el año XXX a un XXX% en el año 2032)","Para el 2029,  el XX% de población, ha tenido acceso a servicios de prevención y promoción de la salud,  en el municipio XX  (De XX% de población en el año XXXX a XX% en el año XXXX)","Desarrollo Social","Población con servicios de prevención y promoción de la salud","Persona",null,"X","MSPAS","MSPAS","MUNICIPALIDAD ",21,"Nombre: Apoyo a la salud preventiva\nDescripción: Apoyo a la salud preventiva",4,"Nombre: Prevención de enfermedades infecciosas, parasitarias y crónico degenerativas\nDescripción: Prevención de enfermedades infecciosas, parasitarias y crónico degenerativas","Nombre: Población con servicios de prevención y promoción de la salud\nDescripción: Población con servicios de prevención y promoción de la salud","Número de personas beneficiadas con servicios de prevención y promoción de la salud, al finalizar el año 2026."]
[77,"Riqueza para todas y todos","ODS 8 Trabajo decente y crecimiento económico","PND 5 Empleo e inversión","MED 7 Se ha reducido la precariedad laboral mediante la generación de empleos decentes y de calidad\n\n","Para el 2029, se ha incrementado en 37 puntos porcentuales la formalidad del empleo (De 323% en 2021 a 360% en 2029)\n\n",null,"Para el 2032, se ha incrementado  el XX% de adolescentes y jóvenes  beneficiados con beca artesano, en el municipio XX, (De XX en el año a XX en el año XXXX)","Para el 2029, se ha incrementado  el XX% de adolescentes y jóvenes  beneficiados con beca artesano, en el municipio XX (De XX en el año a XX en el año XXXX)","Desarrollo Social","Beca artesano entregada a adolescentes y jóvenes","Beca",null,"X","Ministerio de Desarrollo Social -MIDES-","MIDES","MUNICIPALIDAD ",22,"Nombre: Apoyo al desarrollo económico local\nDescripción: Apoyo al desarrollo económico local\n",1,"Nombre: Incremento en la formalidad del empleo\nDescripción: Becas de Educación y Artesano","Nombre: Beca artesano a adolescentes\nDescripción: Beca artesano entregada a adolescentes y jóvenes","Número de becas artesano entregadas a adolescentes y jóvenes, al finalizar el año 2026."]
[78,"Riqueza para todas y todos","ODS 8 Trabajo decente y crecimiento económico","PND 5 Empleo e inversión","MED 7 Se ha reducido la precariedad laboral mediante la generación de empleos decentes y de calidad\n\n","Para el 2029, se ha incrementado en 37 puntos porcentuales la formalidad del empleo (De 323% en 2021 a 360% en 2029)\n\n",null,"Para el año 2032, se ha incrementado la formalidad del empleo XX%,  en el municipio XXX  (De XX% en el año XXX a XX% en el año 2032)","Para el año 2029,se ha incrementado en XX% el número de personas atendidas en eventos y/o actividades de promoción de empleo, en el municipio XXX (De un XX% en el año XXX a un XX% en el año 2029)","N/A","Personas Orientadas e Intermediadas en el Mercado Laboral","Persona",null,"X","Ministerio de Trabajo -MINTRAB-","MINTRAB","MUNICIPALIDAD ",22,"Nombre: Apoyo al desarrollo económico local\nDescripción: Apoyo al desarrollo económico local",1,"Nombre: Incremento en la formalidad del empleo\nDescripción: Incremento en la formalidad del empleo","Nombre: Mercado laboral\nDescripción: Personas Orientadas e Intermediadas en el Mercado Laboral","Número de personas Orientadas e Intermediadas en el Mercado Laboral, al finalizar el año 2026."]
[79,"Riqueza para todas y todos","ODS 8 Trabajo decente y crecimiento económico","PND 5 Empleo e inversión","MED 7 Se ha reducido la precariedad laboral mediante la generación de empleos decentes y de calidad\n\n","Para el 2029, se ha incrementado en 37 puntos porcentuales la formalidad del empleo (De 323% en 2021 a 360% en 2029)\n\n",null,"Para el año 2032, se ha incrementado la formalidad del empleo XX%, en el municipio XXX (De XX% en el año XXX a XX% en el año 2032)","Para el año 2029, se ha incrementado en XX% el número de personas atendidas en eventos y/o actividades de promoción de empleo  en el municipio XXX (De un XX% en el año XXX a un XX% en el año 2029)","Hacia una Función Pública, Legítima y Eficaz","Entidades beneficiadas con asistencia técnica para la mejora de la productividad y competitividad a nivel departamental ","Entidad ",null,"X","Ministerio de Economía -MINECO-","MINECO","MUNICIPALIDAD ",22,"Nombre: Apoyo al desarrollo económico local\nDescripción: Apoyo al desarrollo económico local",1,"Nombre: Incremento en la formalidad del empleo\nDescripción: Incremento en la formalidad del empleo","Nombre: Productividad y competitividad departamental\nDescripción: Entidades beneficiadas con asistencia técnica para la mejora de la productividad y competitividad a nivel departamental ","Número de entidades beneficiadas con asistencia técnica para la mejora de la productividad y competitividad a nivel departamental, al finalizar el año 2026."]
[80,"Riqueza para todas y todos","ODS 8 Trabajo decente y crecimiento económico","PND 5 Empleo e inversión","MED 6 En 2032, el crecimiento del PIB real ha sido paulatino y sostenido, hasta alcanzar una tasa no menor del 54%: a) Rango entre 34 y 44% en el quinquenio 2015-2020 b) Rango entre 44 y 54% en el quinquenio 2021-2025 c) No menor del 54% en los siguientes años, hasta llegar a 2032","Para el 2029, se ha incrementado en 37 puntos porcentuales la formalidad del empleo (De 323% en 2021 a 360% en 2029)",null,"Para el año 2032, se ha incrementado la formalidad del empleo XX%, en el municipio XXX (De XX% en el año XXX a XX% en el año 2032)","Para el año 2029, se ha incrementado en XX% el número de personas atendidas en eventos y/o actividades de promoción de empleo  en el municipio XXX (De un XX% en el año XXX a un XX% en el año 2029)","Desarrollo Social","Empresario de Micro, pequeña y mediana empresa beneficiados con asistencia técnica  en  desarrollo empresarial a nivel departamental","Persona",null,"X","MINECO","MINECO","MUNICIPALIDAD ",22,"Nombre: Apoyo al desarrollo económico local\nDescripción: Apoyo al desarrollo económico local",1,"Nombre: Incremento en la formalidad del empleo\nDescripción: Incremento en la formalidad del empleo","Nombre: Asistencia técnica  en  desarrollo empresarial a nivel departamental\nDescripción: Empresario de Micro, pequeña y mediana empresa beneficiados con asistencia técnica  en  desarrollo empresarial a nivel departamental","Número de empresario de Micro, pequeña y mediana empresa beneficiados con asistencia técnica  en  desarrollo empresarial a nivel departamental, al finalizar el año 2026."]
[81,"Bienestar para la gente","ODS 3 Salud y bienestar","PND 2 Acceso a servicios de salud","MED 3 Lograr la cobertura sanitaria universal, en particular la protección contra los riesgos financieros, el acceso a servicios de salud esenciales de calidad y el acceso a medicamentos y vacunas seguros, eficaces, asequibles y de calidad para todos",null,"Mantener la atención en los servicios de emergencias solicitados por la población a través de la dirección y coordinación de los mismos","Para el año 2032 se ha ampliado el acceso al servicio de salud en un XX % en el municipio de XXX (De un XX% en el año XXX a un XX% en 2032)","Para el 2029, se ha brindado asistencia a la población en atención a emergencias, en el municipio XXX (De XX% en el año XXX a XX% en el año 2029)","Protección, Asistencia y Seguridad Social","Servicios de emergencia proporcionados a la población","Evento",null,"X","Benemérito Cuerpo Voluntario de Bomberos -BCVB-","BCVB","MUNICIPALIDAD ",25,"Nombre: Servicios de emergencia\nDescripción: Servicios de emergencia",0,"Nombre: Sin Subprograma\nDescripción: Sin subprograma","Nombre: Servicios de emergencia\nDescripción: Servicios de emergencia proporcionados a la población","Número de eventos realizados relacionados con Servicios de emergencia proporcionados a la población, al finalizar el año 2026."]
[82,"Estado garante de los derechos humanos y conductor del desarrollo","ODS 16 Paz, Justicia e instituciones sólidas","PND 7 Fortalecimiento institucional, seguridad y justicia","MED 12 Crear instituciones eficaces, responsables y transparentes a todos los niveles",null,"Para el 2032, se ha incrementado en 211% la participación de personas en las diferentes disciplinas del arte (De 9,469 personas en 2014 a 11,468 en 2032)","Para el año 2032 se ha incrementado en XX% la participación de personas en las diferentes disciplinas del arte en el municipio de XXX (De XX% en el año XXX a XX% en el año 2032)","Para el año 2029,  el XX% de población tiene acceso actividades de formación en diferentes disciplinas del arte, en el municipio de XXX (De XX en el año XXX a XX en el año 2029)","Desarrollo Social","Autorización y control de espectáculos públicos en beneficio de personas ","Persona",null,"X","Ministerio de Cultura y Deportes -MCD-","MCD","MUNICIPALIDAD ",26,"Nombre: Participación en disciplinas del arte\nDescripción: Participación en disciplinas del arte",2,"Nombre: Formación, fomento y difusión de las artes\nDescripción: Formación, fomento y difusión de las artes","Nombre: Autorización y control de espectáculos públicos\nDescripción: Autorización y control de espectáculos públicos en beneficio de personas","Número de personas beneficiadas con Autorización y control de espectáculos públicos, al finalizar el año 2026."]
[83,"Estado garante de los derechos humanos y conductor del desarrollo","ODS 16 Paz, Justicia e instituciones sólidas","PND 7 Fortalecimiento institucional, seguridad y justicia","MED 12 Crear instituciones eficaces, responsables y transparentes a todos los niveles",null,"Para el 2032, se ha incrementado en 211% la participación de personas en las diferentes disciplinas del arte (De 9,469 personas en 2014 a 11,468 en 2032)","Para el año 2032 se ha incrementado en XX% la participación de personas en las diferentes disciplinas del arte en el municipio de XXX (De XX% en el año XXX a XX% en el año 2032)","Para el año 2029,  el XX% de población tiene acceso actividades de formación en diferentes disciplinas del arte, en el municipio de XXX (De XX en el año XXX a XX en el año 2029)","Desarrollo Social","Personas beneficiadas con formación profesional en las diferentes disciplinas del Arte","Persona",null,"X","Ministerio de Cultura y Deportes -MCD-","MCD","MUNICIPALIDAD ",26,"Nombre: Participación en disciplinas del arte\nDescripción: Participación en disciplinas del arte",2,"Nombre: Formación, fomento y difusión de las artes\nDescripción: Formación, fomento y difusión de las artes","Nombre: Formación profesional en disciplinas del arte\nDescripción: Hombres y mujeres beneficiadas con formación profesional en diferentes disciplinas del arte","Número de personas beneficiadas con formación profesional en las diferentes disciplinas del Arte, al finalizar el año 2026."]
[84,"Estado garante de los derechos humanos y conductor del desarrollo","ODS 16 Paz, Justicia e instituciones sólidas","PND 7 Fortalecimiento institucional, seguridad y justicia","MED 12 Crear instituciones eficaces, responsables y transparentes a todos los niveles",null,"Para el 2032, se ha incrementado en 211% la participación de personas en las diferentes disciplinas del arte (De 9,469 personas en 2014 a 11,468 en 2032)","Para el año 2032 se ha disminuido en XX% la incidencia criminal en el municipio de XXX (De XX% en el año XXX a XX% en el año 2032)","Para el año XXX el XX% de población del municipio de XXX tiene acceso actividades culturales, recreativas y deportivas (De XX en el año XXX a XX en el año XXX)","Desarrollo Social","Conciertos y Presentaciones de Instituciones Artisticas en Beneficio de Personas","Evento",null,"X","Ministerio de Cultura y Deportes -MCD-","MCD","MUNICIPALIDAD ",26,"Nombre: Participación en disciplinas del arte\nDescripción: Participación en disciplinas del arte",2,"Nombre: Formación, fomento y difusión de las artes\nDescripción: Formación, fomento y difusión de las artes","Nombre: Conciertos y Presentaciones de Instituciones Artisticas\nDescripción: Conciertos y Presentaciones de Instituciones Artisticas en Beneficio de Personas","Número de eventos realizados relacionados con Conciertos y Presentaciones de Instituciones Artisticas, al finalizar el año 2026."]
[85,"Estado garante de los derechos humanos y conductor del desarrollo","ODS 16 Paz, Justicia e instituciones sólidas","PND 7 Fortalecimiento institucional, seguridad y justicia","MED 12 Crear instituciones eficaces, responsables y transparentes a todos los niveles",null,"Para el 2032, se ha incrementado en 211% la participación de personas en las diferentes disciplinas del arte (De 9,469 personas en 2014 a 11,468 en 2032)","Para el año 2032 se ha incrementado en XX% la participación de personas en las diferentes disciplinas del arte en el municipio de XXX (De XX% en el año XXX a XX% en el año 2032)","Para el año 2029,  el XX% de población tiene acceso actividades de formación en diferentes disciplinas del arte, en el municipio de XXX (De XX en el año XXX a XX en el año 2029)","Desarrollo Social","Personas beneficiadas con difusión cultural, artistica y literaria","Persona",null,"X","Ministerio de Cultura y Deportes -MCD-","MCD","MUNICIPALIDAD ",26,"Nombre: Participación en disciplinas del arte\nDescripción: Participación en disciplinas del arte",2,"Nombre: Formación, fomento y difusión de las artes\nDescripción: Formación, fomento y difusión de las artes","Nombre: Difusión cultural, artística y literaria    \nDescripción: Personas beneficiadas con difusión cultural, artística y literaria    ","Número de personas beneficiadas con difusión cultural, artistica y literaria, al finalizar el año 2026."]
[86,"Estado garante de los derechos humanos y conductor del desarrollo","\nODS 11 Ciudades y comunidades sostenibles \n","PND 7 Fortalecimiento institucional, seguridad y justicia","MED 12 Crear instituciones eficaces, responsables y transparentes a todos los niveles",null,"Promover la institucionalización y cultura en Gestión Integral de la Reducción del Riesgo a Desastres, en los distintos niveles sectoriales y territoriales del país con el fin de no incrementar la cantidad de personas fallecidas debido a la ocurrencia de desastres en los años 2023 a 2027 ","Para el 2032,  se ha reducido en XX% la ocupación de áreas vulnerables o en riesgo en el municipio de XXX (De XX % en XXX a XXX% en 2032)","Para el 2029, se cuenta con XXX COLREDES equipadas y capacitadas ubicadas en áreas de alto riesgo, en el municipio de XXX (De un XXX en el año XXX a XXX en el año 2029)\n","Cuidado de la Naturaleza\n\n","Población guatemalteca beneficiada con ayuda y asistencia humanitaria en el momento de un desastre o por medio de actividades, iniciativas, proyectos, obras e investigaciones en todas las áreas de reducción de desastres","REGISTRO",null,"X","Secretaria Ejecutiva de la Coordinadora Nacional para la Reducción de Desastres -SE CONRED-","SE CONRED","MUNICIPALIDAD ",27,"Nombre: Gestión integral de riesgo\nDescripción: Gestión integral de riesgo",2,"Nombre: Programa de apoyo para la reducción de riesgo\nDescripción: Programa de apoyo para la reducción de riesgo","Nombre: Ayuda y asistencia humanitaria en el momento de un desastre\nDescripción: Población guatemalteca beneficiada con ayuda y asistencia humanitaria en el momento de un desastre o por medio de actividades, iniciativas, proyectos, obras e investigaciones en todas las áreas de reducción de desastres","Número de registros generados por Población guatemalteca beneficiada con ayuda y asistencia humanitaria en el momento de un desastre o por medio de actividades, iniciativas, proyectos, obras e investigaciones en todas las áreas de reducción de desastres, al finalizar el año 2026."]
[87,"Estado garante de los derechos humanos y conductor del desarrollo","\nODS 11 Ciudades y comunidades sostenibles \n","PND 7 Fortalecimiento institucional, seguridad y justicia","MED 12 Crear instituciones eficaces, responsables y transparentes a todos los niveles",null,"Para el 2026 se ha incrementado a 124 el número de instituciones del Sistema CONRED con capacidades para aplicar normativas y lineamientos para la prevención y mitigación de riesgos","Para el 2032 se ha reducido en XX% la ocupación de áreas vulnerables o en riesgo en el municipio de XXX (De XX % en XXX a XXX% en 2032)","Para el 2029, se cuenta con XXX COLREDES equipadas y capacitadas ubicadas en áreas de alto riesgo, en el municipio de XXX (De un XXX en el año XXX a XXX en el año 2029)\n","Cuidado de la Naturaleza\n\n","Sistema CONRED fortalecido con procesos formativos y de organización en gestión del riesgo de desastres","Entidad",null,"X","Secretaria Ejecutiva de la Coordinadora Nacional para la Reducción de Desastres -SE CONRED-","SE CONRED","MUNICIPALIDAD ",27,"Nombre: Gestión integral de riesgo\nDescripción: Gestión integral de riesgo",4,"Nombre: Prevención y mitigación de riesgos\nDescripción: Prevención y mitigación de riesgos","Nombre: Gestión del riesgo de desastres\nDescripción: Sistema CONRED fortalecido con procesos formativos y de organización en gestión del riesgo de desastres","Número de entidades que participan en Sistema CONRED fortalecido con procesos formativos y de organización en gestión del riesgo de desastres, al finalizar el año 2026."]
[88,"Estado garante de los derechos humanos y conductor del desarrollo","\nODS 11 Ciudades y comunidades sostenibles \n","PND 7 Fortalecimiento institucional, seguridad y justicia","MED 12 Crear instituciones eficaces, responsables y transparentes a todos los niveles",null,"Para el 2026 se ha incrementado a 152 el número de instituciones del Sistema CONRED con  planes de respuesta","Para el 2032,  se ha reducido en XX% la ocupación de áreas vulnerables o en riesgo en el municipio de XXX (De XX % en XXX a XXX% en 2032)","Para el 2029, se cuenta con XXX COLREDES equipadas y capacitadas ubicadas en áreas de alto riesgo, en el municipio de XXX (De un XXX en el año XXX a XXX en el año 2029)\n","Hacia una Función Pública, Legítima y Eficaz","Fortalecimiento de recursos, asistencia y ayuda humanitaria","Entidad",null,"X","Secretaria Ejecutiva de la Coordinadora Nacional para la Reducción de Desastres -SE CONRED-","SE CONRED","MUNICIPALIDAD ",27,"Nombre: Gestión integral de riesgo\nDescripción: Gestión integral de riesgo",5,"Nombre: Planes de respuesta\nDescripción: Planes de respuesta","Nombre: Fortalecimiento de recursos, asistencia y ayuda humanitaria\nDescripción: Fortalecimiento de recursos, asistencia y ayuda humanitaria","Número de entidades que participan en fortalecimiento de recursos, asistencia y ayuda humanitaria, al finalizar el año 2026."]
[89,"Bienestar para la gente","ODS 3 Salud y bienestar","PND 2 Acceso a servicios de salud","MED 3 Lograr la cobertura sanitaria universal, en particular la protección contra los riesgos financieros, el acceso a servicios de salud esenciales de calidad y el acceso a medicamentos y vacunas seguros, eficaces, asequibles y de calidad para todos",null,"La población guatemalteca goza de salud, las enfermedades infecciosas, parasitarias y las crónico-degenerativas han disminuido y son tratadas eficientemente\"","Para el año 2032 se ha ampliado el acceso al servicio de salud en un XX %  en el municipio de XXX (De un XX% en el año XXX a un XXX% en el año 2032)","Para el 2029,  el XX% de población, ha tenido acceso a servicios de prevención y promoción de la salud,  en el municipio XX  (De XX% de población en el año XXXX a XX% en el año XXXX)","Desarrollo Social","Personas atendidas en servicios de recuperación de la salud","Persona",null,"X","Ministerio de Salud Pública y Asistencia Social -MSPAS-","MSPAS","MUNICIPALIDAD ",29,"\nNombre: Recuperación de la salud\nDescripción: Recuperación de la salud",0,"Nombre: Sin subprograma\nDescripción: Sin subprograma","Nombre: Recuperación de la salud\nDescripción: Personas atendidas en servicios de recuperación de la salud","Número de personas beneficiadas con servicios de recuperación de la salud, al finalizar el año 2026."]
[90,"Bienestar para la gente","\nODS 11 Ciudades y comunidades sostenibles \n","PND 7 Fortalecimiento institucional, seguridad y justicia","Sin vinculación",null,"Para el 2032 se ha incrementado en un 5% el registro de bienes patrimoniales ampliando la cobertura  (De 5,350 en 2023 a 6,150 en 2027)","Para el año 2032, cuenta con programas para la restauración, preservación y protección del patrimonio cultural y natural, en el municipio XX  (De XX% en el año XXX a XX% en el año XXX)","Para el año 2029,  se invierte en mejorar las condiciones de infraestructura y prestación de servicios en áreas públicas de XXX lugares turísticos y ecoturísticos del  municipio de XXX (De XX lugares turísticos en el año XXX a XX lugares turísticos en el año XXX)","Desarrollo Social","Visitantes atendidos en parques, sitios arqueologicos y zonas de rescate cultural y natural","Registro",null,"X","Ministerio de Cultura y Deportes -MCD-","MCD","MUNICIPALIDAD ",30,"Nombre: Restauración, preservación y protección del patrimonio cultural y natural\nDescripción: Restauración, preservación y protección del patrimonio cultural y natural",0,"Nombre: Sin Subprograma\nDescripción: Sin subprograma","Nombre: Visitantes atendidos en parques, sitios arqueologicos y zonas de rescate cultural y natural\nDescripción: Visitantes atendidos en parques, sitios arqueologicos y zonas de rescate cultural y natural","Número de visitantes atendidos en parques, sitios arqueologicos y zonas de rescate cultural y natural, al finalizar el año 2026."]
[91,"Bienestar para la gente","\nODS 11 Ciudades y comunidades sostenibles \n","PND 7 Fortalecimiento institucional, seguridad y justicia","Sin vinculación",null,"Para el 2032 se ha incrementado en un 5% el registro de bienes patrimoniales ampliando la cobertura  (De 5,350 en 2023 a 6,150 en 2027)","Para el año 2032, se cuenta con programas para la restauración, preservación y protección del patrimonio cultural y natural, el municipio XX  (De XX% en el año XXX a XX% en el año XXX)","Para el 2029, se cuenta con XX programas municipales de emprendimiento para fomentar el desarrollo turístico a nivel local, en el municipio de XXX (De un XXX en el año XXX a XXX en el año XXX) ","Desarrollo Social","Visitantes atendidos en los museos","Persona",null,"X","Ministerio de Cultura y Deportes -MCD-","MCD","MUNICIPALIDAD ",30,"Nombre: Restauración, preservación y protección del patrimonio cultural y natural\nDescripción: Restauración, preservación y protección del patrimonio cultural y natural",0,"Nombre: Sin Subprograma\nDescripción: Sin subprograma","Nombre: Visitantes atendidos en los museos \nDescripción: Visitantes atendidos en los museos","Número de visitantes atendidos en los museos, al finalizar el año 2026."]
[92,"Bienestar para la gente","\nODS 11 Ciudades y comunidades sostenibles \n","PND 7 Fortalecimiento institucional, seguridad y justicia","Sin vinculación",null,"Para el 2032 se ha incrementado en un 5% el registro de bienes patrimoniales ampliando la cobertura  (De 5,350 en 2023 a 6,150 en 2027)","Para el año 2032, el municipio XX, cuenta con programas para la restauración, preservación y protección del patrimonio cultural y natural, en el municipio de XXX (De XX% en el año XXX a XX% en el año XXX)","Para el año 2029, el XX% de población,  beneficiada con el patrimonio bibliográfico y documental, del municipio de XXX  (De XX en el año XXX a XX en el año XXX)","Desarrollo Social","Usuarios beneficiados con el patrimonio bibliográfico y documental","Persona",null,"X","Ministerio de Cultura y Deportes -MCD-","MCD","MUNICIPALIDAD ",30,"Nombre: Restauración, preservación y protección del patrimonio cultural y natural\nDescripción: Restauración, preservación y protección del patrimonio cultural y natural",0,"Nombre: Sin Subprograma\nDescripción: Sin subprograma","Nombre: Usuarios beneficiados con el patrimonio bibliográfico y documental\nDescripción: Usuarios beneficiados con el patrimonio bibliográfico y documental","Número de usuarios beneficiados con el patrimonio bibliográfico y documental, al finalizar el año 2026."]
[93,"Estado garante de los derechos humanos y conductor del desarrollo","ODS 16 Paz, Justicia e instituciones sólidas","PND 7 Fortalecimiento institucional, seguridad y justicia","MED 12 Crear instituciones eficaces, responsables y transparentes a todos los niveles",null,"Para el 2032, se ha incrementado en 83 puntos porcentuales la participación y promoción de las personas en el deporte no federado, no escolar y de recreación (de 35% en 2022 a 118% en 2032)  ","Para el año 2032, se ha incrementado en XX% la incidencia criminal en el municipio de XXX (De XX% en el año XXX a XX% en el año 2032)","Para el año 2029, el XX% de población, tiene acceso a actividades deportivas no escolares, no federadas y de recreación, en el municipio de XXX (De XX en el año XXX a XX en el año XXX)","Desarrollo Social","Pesonas beneficiadas con actividades deportivas no escolares, no federadas y de recreación","Persona",null,"X","Ministerio de Cultura y Deportes -MCD-","MCD","MUNICIPALIDAD ",31,"Nombre: Fomento al deporte y a la recreación\nDescripción: Fomento al deporte y a la creación",0,"Nombre: Sin Subprograma\nDescripción: Sin subprograma","Nombre: Fomento al deporte y a la creación\nDescripción: Fomento al deporte y a la creación","Número de personas beneficiadas con actividades deportivas no escolares, no federadas y de recreación, al finalizar el año 2026."]
[94,"Estado garante de los derechos humanos y conductor del desarrollo","ODS 16 Paz, Justicia e instituciones sólidas","PND 7 Fortalecimiento institucional, seguridad y justicia","MED 12 Crear instituciones eficaces, responsables y transparentes a todos los niveles",null,"Para el 2032, se ha incrementado en 83 puntos porcentuales la participación y promoción de las personas en el deporte no federado, no escolar y de recreación (de 35% en 2022 a 118% en 2032)  ","Para el año 2032 se ha disminuido en XX% la incidencia criminal en el municipio de XXX (De XX% en el año XXX a XX% en el año 2032)","Para el año 2029,  el XX% de población, tiene acceso a espacios para la práctica del deporte y la recreación física, del municipio de XXX  (De XX en el año XXX a XX en el año 2029)","Desarrollo Social","Personas  beneficiadas con acceso a espacios para la práctica del deporte y la recreación física \n","Persona",null,"X","Ministerio de Cultura y Deportes -MCD-","MCD","MUNICIPALIDAD ",31,"Nombre: Fomento al deporte y a la recreación\nDescripción: Fomento al deporte y a la creación",0,"Nombre: Sin Subprograma\nDescripción: Sin subprograma","Nombre: Fomento al deporte y a la creación\nDescripción: Fomento al deporte y a la creación","Número de personas beneficiadas con acceso a espacios para la práctica del deporte y la recreación física, al finalizar el año 2026."]
[95,"Estado garante de los derechos humanos y conductor del desarrollo","ODS 16 Paz, Justicia e instituciones sólidas","PND 7 Fortalecimiento institucional, seguridad y justicia","MED 12 Crear instituciones eficaces, responsables y transparentes a todos los niveles",null,"Para el 2032, se ha incrementado en 83 puntos porcentuales la participación y promoción de las personas en el deporte no federado, no escolar y de recreación (de 35% en 2022 a 118% en 2032)  ","Para el año 2032 se ha disminuido en XX% la incidencia criminal en el municipio de XXX (De XX% en el año XXX a XX% en el año 2032)","Para el año 2029,  el XX% de población, tiene acceso  a actividades físicas, recreativas y de sensibilización para la prevención de la violencia, en el municipio (De XX en el año XXX a XX en el año 2029)","Desarrollo Social","Mujeres beneficiadas con acceso a actividades físicas, recreativas y de sensibilización para la prevención de la violencia \n","Persona",null,"X","Ministerio de Cultura y Deportes -MCD-","MCD","MUNICIPALIDAD ",31,"Nombre: Fomento al deporte y a la recreación\nDescripción: Fomento al deporte y a la creación",0,"Nombre: Sin Subprograma\nDescripción: Sin subprograma","Nombre: Fomento al deporte y a la creación \nDescripción: Fomento al deporte y a la creación","Número de mujeres beneficiadas con acceso a actividades físicas, recreativas y de sensibilización para la prevención de la violencia, al finalizar el año 2026."]
[96,"Estado garante de los derechos humanos y conductor del desarrollo","ODS 16 Paz, Justicia e instituciones sólidas","PND 7 Fortalecimiento institucional, seguridad y justicia","MED 12 Crear instituciones eficaces, responsables y transparentes a todos los niveles",null,"Para el 2032, se ha incrementado en 83 puntos porcentuales la participación y promoción de las personas en el deporte no federado, no escolar y de recreación (de 35% en 2022 a 118% en 2032)  ","Para el año 2032 se ha disminuido en XX% la incidencia criminal en el municipio de XXX (De XX% en el año XXX a XX% en el año 2032)","Para el año 2029,  el XX% de población  tiene acceso a actividades físicas, deportivas y recreativas, en el municipio de XXX (De XX en el año XXX a XX en el año 2029)","Desarrollo Social","Jóvenes beneficiados con actividades físicas, deportivas y recreativas ","Persona",null,"X","Ministerio de Cultura y Deportes -MCD-","MCD","MUNICIPALIDAD ",31,"Nombre: Fomento al deporte y a la recreación\nDescripción: Fomento al deporte y a la creación",0,"Nombre: Sin Subprograma\nDescripción: Sin subprograma","Nombre: Jóvenes beneficiados con actividades físicas, deportivas y recreativas \nDescripción: Jóvenes beneficiados con actividades físicas, deportivas y recreativas","Número de jóvenes beneficiados con actividades físicas, deportivas y recreativas, al finalizar el año 2026."]
[97,"Estado garante de los derechos humanos y conductor del desarrollo","ODS 16 Paz, Justicia e instituciones sólidas","PND 7 Fortalecimiento institucional, seguridad y justicia","MED 12 Crear instituciones eficaces, responsables y transparentes a todos los niveles",null,"Para el 2032, se ha incrementado en 83 puntos porcentuales la participación y promoción de las personas en el deporte no federado, no escolar y de recreación (de 35% en 2022 a 118% en 2032)  ","Para el año 2032 se ha disminuido en XX% la incidencia criminal en el municipio de XXX (De XX% en el año XXX a XX% en el año 2032)","Para el año 2029,  el XX% de población  tiene acceso a actividades físicas, deportivas y recreativas, en el municipio de XXX (De XX en el año XXX a XX en el año 2029)","Desarrollo Social","Festivales deportivos, recreativos y eventos especiales orientados a garantizar el acceso de la población a la actividad física, el deporte y la recreación","Evento",null,"X","Ministerio de Cultura y Deportes -MCD-","MCD","MUNICIPALIDAD ",31,"Nombre: Fomento al deporte y a la recreación\nDescripción: Fomento al deporte y a la creación",0,"Nombre: Sin Subprograma\nDescripción: Sin subprograma","Nombre: Festivales deportivos, recreativos y eventos especiales \nDescripción: Festivales deportivos, recreativos y eventos especiales orientados a garantizar el acceso de la población a la actividad física, el deporte y la recreación","Número de eventos realizados relacionados con Festivales deportivos, recreativos y eventos especiales orientados a garantizar el acceso de la población a la actividad física, el deporte y la recreación, al finalizar el año 2026."]
[98,"Bienestar para la gente","ODS 1 Fin de la pobreza ","PND 1 Reducción de la Pobreza y Protección Social","MED 1 Para 2030, potenciar y promover la inclusión social, económica y política de todos, independientemente de su edad, sexo,  discapacidad, raza, etnia, origen, religión o situación económica u otra condición",null,"Para el año 2032, incrementar a un 90% el total de la red vial en buen estado que equivale a (línea base) 18,17492 kilómetros del total de 19,99241 kilómetros proyectados para 2032","Para el año 2032, se ha aumentado/mejorado en XX km la  infraestructura vial en buenas condiciones, en el municipio XXX  (De XXkm  en el año XXX a XX km  en el año 2032)  ","Para el año 2029, se ha incrementado XX kms  con infraestructura vial en buenas condiciones, en el municipio XXX  (De XX Kms en el año XXX a XX kms  en el año 2029)","La infraestructura económica para el buen vivir","Mejoramiento caminos rurales","KILOMETRO",null,"X","Ministerio de Comunicaciones, Infraestructura y Vivienda -CIV-","CIV","MUNICIPALIDAD ",32,"Nombre: Desarrollo de la infraestructura vial\nDescripción: Desarrollo de la infraestructura vial ",0,"Nombre: Sin Subprograma\nDescripción: Sin subprograma","Nombre: Mejoramiento caminos rurales\nDescripción: Mejoramiento caminos rurales","Cantidad de kilómetros para Mejoramiento caminos rurales, al finalizar el año 2026."]
[99,"Bienestar para la gente","ODS 1 Fin de la pobreza ","PND 1 Reducción de la Pobreza y Protección Social","MED 1 Para 2030, potenciar y promover la inclusión social, económica y política de todos, independientemente de su edad, sexo,  discapacidad, raza, etnia, origen, religión o situación económica u otra condición",null,"Para el año 2032, incrementar a un 90% el total de la red vial en buen estado que equivale a (línea base) 18,17492 kilómetros del total de 19,99241 kilómetros proyectados para 2032","Para el año 2032, el municipio XXX  ha aumentado/mejorado en XX km la  infraestructura vial en buenas condiciones (De XXkm  en el año XXX a XX km  en el año 2032)  ","Para el año 2029, se ha incrementado XX kms  con infraestructura vial en buenas condiciones s en el municipio XXX  (De XX Kms en el año XXX a XX kms  en el año 2029)","La infraestructura económica para el buen vivir","Construcción, ampliación, reposición y mejoramiento de carreteras terciarias \n\n","KILOMETRO",null,"X","Ministerio de Comunicaciones, Infraestructura y Vivienda -CIV-","CIV","MUNICIPALIDAD ",32,"Nombre: Desarrollo de la infraestructura vial\nDescripción: Desarrollo de la infraestructura vial ",0,"Nombre: Sin Subprograma\nDescripción: Sin subprograma","Nombre: Carreteras terciarias\nDescripción: Construcción, ampliación, reposición y mejoramiento de carreteras terciarias ","Cantidad de kilómetros para Construcción, ampliación, reposición y mejoramiento de carreteras terciarias, al finalizar el año 2026."]
[100,"Bienestar para la gente","ODS 1 Fin de la pobreza ","PND 1 Reducción de la Pobreza y Protección Social","MED 1 Para 2030, potenciar y promover la inclusión social, económica y política de todos, independientemente de su edad, sexo,  discapacidad, raza, etnia, origen, religión o situación económica u otra condición",null,"Para el año 2032, incrementar a un 90% el total de la red vial en buen estado que equivale a (línea base) 18,17492 kilómetros del total de 19,99241 kilómetros proyectados para 2032","Para el año 2032, el municipio XXX  ha aumentado/mejorado en XX km la  infraestructura vial en buenas condiciones (De XXkm  en el año XXX a XX km  en el año 2032)  ","Para el año 2029, se ha incrementado XX kms  con infraestructura vial en buenas condiciones s en el municipio XXX  (De XX Kms en el año XXX a XX kms  en el año 2029)","La infraestructura económica para el buen vivir","Construcción, ampliación, reposición y mejoramiento de puentes en caminos rurales","KILOMETRO",null,"X","Ministerio de Comunicaciones, Infraestructura y Vivienda -CIV-","CIV","MUNICIPALIDAD ",32,"Nombre: Desarrollo de la infraestructura vial\nDescripción: Desarrollo de la infraestructura vial terciaria",0,"Nombre: Sin Subprograma\nDescripción: Sin subprograma","Nombre: Caminos rurales\nDescripción: Construcción, ampliación, reposición y mejoramiento de puentes en caminos rurales ","Cantidad de kilómetros para Construcción, ampliación, reposición y mejoramiento de puentes en caminos rurales, al finalizar el año 2026."]
[101,"Estado garante de los derechos humanos y conductor del desarrollo","ODS 16 Paz, Justicia e instituciones sólidas","PND 7 Fortalecimiento institucional, seguridad y justicia","MED 12 Crear instituciones eficaces, responsables y transparentes a todos los niveles",null,"Para el año 2032 se ha incrementado al 73% en jóvenes y adultos la práctica de elementos identitarios y expresiones culturales (de 78,536 personas atendidas en 2022 a 578,536 al 2032)","Para el año 2032 se ha disminuido en XX% la incidencia criminal en el municipio de XXX (De XX% en el año XXX a XX% en el año 2032)","Para el año 2029, el XX% de población tiene acceso a eventos de promoción cultural, en el municipio de XXX (De XX en el año XXX a XX en el año 2029)","Desarrollo Social","Personas beneficiadas con eventos de promoción cultural","Persona",null,"X","Ministerio de Cultura y Deportes -MCD-","MCD","MUNICIPALIDAD ",33,"Nombre: Gestión del desarrollo cultural\nDescripción: Gestión del desarrollo cultural",0,"Nombre: Sin Subprograma\nDescripción: Sin subprograma","Nombre: Promoción cultural\nDescripción: Personas beneficiadas con eventos de promoción cultural","Número de personas beneficiadas con promoción cultural, al finalizar el año 2026."]
[102,"Bienestar para la gente","ODS 10 Reducción de las desigualdades","PND 1 Reducción de la Pobreza y Protección Social","MED 2 Implementar a nivel nacional sistemas y medidas apropiados de protección social para todos, incluidos niveles mínimos y, de aquí a 2030, lograr una amplia cobertura de las personas pobres y vulnerables",null,"Para el 2032, se ha incrementado el diligenciamiento de la atención  de niños, niñas, adolescentes, mujeres, adulto mayor y personas con discapacidad, en 3819% (20,994 personas) Línea base:2021 54,970 personas (NNA, Mujer, Adulto Mayor y Personas con Discapacidad, representados y atendidos para la protección de sus derechos) además, se atiende el total de las personas a través del Modelo de investigación y representación de casos ",null,null,"Seguridad Democrática en un país","Protección de los derechos de la mujer, adulto mayor y personas con discapacidad","Persona",null,"X","Procuraduría General de la Nación -PGN-","PGN","MUNICIPALIDAD ",34,"Nombre: Protección de los derechos de la familia\nDescripción: Protección de los derechos de la familia",0,"\nNombre: Sin Subprograma\nDescripción: Sin subprograma","Nombre: Protección de los derechos de la familia\nDescripción: Protección de los derechos de la mujer, adulto mayor y personas con discapacidad","Número de personas beneficiadas mediante la protección de los derechos de la mujer, adulto mayor y personas con discapacidad, al finalizar el año 2026."]
[103,"Bienestar para la gente","ODS 3 Salud y bienestar","PND 2 Acceso a servicios de salud","MED 3 Lograr la cobertura sanitaria universal, en particular la protección contra los riesgos financieros, el acceso a servicios de salud esenciales de calidad y el acceso a medicamentos y vacunas seguros, eficaces, asequibles y de calidad para todos",null,null,"Para 2032, se tiene accesibilidad a medicamentos en el municipio","Para 2029, se tiene un XX% de accesibilidad a medicamentos, en el municipio de XXXXX (De un XX% en el año XXXX a un XX% en el año 2029)","Desarrollo Social","Personas beneficiadas con gestión y administración de farmacias municipales populares","Persona","x",null,"MUNICIPALIDAD ","MUNICIPALIDAD ","MUNICIPALIDAD ",36,"Nombre: Accesibilidad a medicamentos\nDescripción: Accesibilidad a medicamentos",0,"Nombre: Sin Subprograma\nDescripción: Sin subprograma","Nombre: Farmacias municipales\nDescripción: Personas beneficiadas con gestión y administración de farmacias municipales populares","Número de personas beneficiadas con gestión y administración de farmacias municipales populares, al finalizar el año 2026."]
[104,"Bienestar para la gente","ODS 1 Fin de la pobreza ","PND 1 Reducción de la Pobreza y Protección Social","Para 2030, fomentar la resiliencia de los pobres y las personas que se encuentran en situaciones vulnerables y reducir su exposición y vulnerabilidad a los fenómenos extremos relacionados con el clima y a otros desastres económicos, sociales y ambientales",null,"Para el 2029, se ha reducido la población que vive en condición de vulnerabilidad,, económica, cultural, ambiental, para mejorar su nivel de vida en los hogares de la población a nivel nacional","Para el 2032,  se ha reducido en XX% la condición de vulnerabilidad  de las personas,  en el municipio XX (De XX% en 2023, a XX% al 2032)","Para el 2029,  se ha reducido en XX% la condición de vulnerabilidad  de las personas,  en el municipio XX (De XX% en 2023, a XX% al 2029)","Desarrollo Social","Población en condición de vulnerabilidad atendida ","Persona","X",null,"MUNICIPALIDAD","MUNICIPALIDAD","MUNICIPALIDAD",37,"Nombre: Atención a población vulnerable\nDescripción: Atención a población vulnerable",0,"Nombre: Sin Subprograma\nDescripción: Sin subprograma","Nombre: Población en condición de vulnerabilidad atendida\nDescripción: Población en condición de vulnerabilidad atendida","Número de personas atendidas en condición de vulnerabilidad, al finalizar el año 2026."]
[105,"Riqueza para todas y todos","ODS 8 Trabajo decente y crecimiento económico","PND 5 Empleo e inversión","MED 7 Se ha reducido la precariedad laboral mediante la generación de empleos decentes y de calidad\n\n","Para el 2029, se ha incrementado en 37 puntos porcentuales la formalidad del empleo (De 323% en 2021 a 360% en 2029)\n\n",null,"Para el año 2032, se ha incrementado la formalidad del empleo XX%, en el municipio XXX (De XX% en el año XXX a XX% en el año 2032)","Para el año 2029, se ha incrementado en XX% el número de personas atendidas en eventos y/o actividades de promoción de empleo en el municipio XXX \n(De un XX% en el año XXX a un XX% en el año 2029)","Avance para disminuir la brecha Digital con Tecnologías e Innovación ","Personas capacitadas  e informadas  sobre  los beneficios económicos de la competencia en  los mercados y en  la competitividad del país a nivel departamental","Persona ",null,"X","Ministerio de Economía -MINECO-","MINECO","MUNICIPALIDAD ",22,"Nombre: Apoyo al desarrollo económico local\nDescripción: Apoyo al desarrollo económico local",5,"Nombre: Promoción de la inversión y competencia\nDescripción: Promoción de la inversión y competencia","Nombre: Competitividad a nivel departamental\nDescripción: Personas capacitadas  e informadas  sobre  los beneficios económicos de la competencia en  los mercados y en  la competitividad del país a nivel departamental","Número de personas capacitadas  e informadas  sobre  los beneficios económicos de la competencia en  los mercados y en  la competitividad del país a nivel departamental, al finalizar el año 2026."]
[106,"Riqueza para todas y todos","ODS 8 Trabajo decente y crecimiento económico","PND 5 Empleo e inversión","MED 7 Se ha reducido la precariedad laboral mediante la generación de empleos decentes y de calidad\n\n","Para el 2029, se ha incrementado en 37 puntos porcentuales la formalidad del empleo (De 323% en 2021 a 360% en 2029)\n\n",null,"Para el año 2032, se ha incrementado la formalidad del empleo XX%, en el municipio XXX (De XX% en el año XXX a XX% en el año 2032)","Para el año 2029, se ha incrementado en XX% el número de personas atendidas en eventos y/o actividades de promoción de empleo, en el municipio XXX\n(De un XX% en el año XXX a un XX% en el año 2029)",null,"Jóvenes capacitados y certificados en formación profesional de emprendimiento e innovación, con énfasis en mujeres y discapacitados a nivel departamental","Persona",null,"X","Ministerio de Economía -MINECO-","MINECO","MUNICIPALIDAD ",22,"Nombre: Apoyo al desarrollo económico local\nDescripción: Apoyo al desarrollo económico local",5,"Nombre: Promoción de la inversión y competencia\nDescripción: Promoción de la inversión y competencia","Nombre: Formación profesional de emprendimiento e innovación\nDescripción: Jóvenes capacitados y certificados en formación profesional de emprendimiento e innovación, con énfasis en mujeres y discapacitados a nivel departamental","Número de jóvenes capacitados y certificados en formación profesional de emprendimiento e innovación, con énfasis en mujeres y discapacitados a nivel departamental, al finalizar el año 2026."]
[107,"Estado garante de los derechos humanos y conductor del desarrollo","ODS 16 Paz, Justicia e instituciones sólidas","PND 7 Fortalecimiento institucional, seguridad y justicia","MED 12 Crear instituciones eficaces, responsables y transparentes a todos los niveles",null,"Al año 2025, se ha alcanzado el 70% de las metas establecidas en la PGG y el 20% de las metas de las Prioridades Nacionales del Desarrollo, con base en los instrumentos, orientaciones, criterios y metodologías trasladadas por SEGEPLAN a las Instituciones Públicas",null,null,"Hacia una función pública legítima y eficaz","Nombre: Asesoría técnica en procesos de capacitación\nDescripción: Entidades e instituciones públicas, y Sistema de Consejos de Desarrollo, con asesoría técnica en procesos de planificación y programación, con orientación a resultados","Entidad",null,"X","SEGEPLAN","SEGEPLAN","MUNICIPALIDAD ",35,"Nombre: Fortalecimiento en la planificación nacional para desarrollo integral del país\nDescripción: Fortalecimiento en la planificación nacional para desarrollo integral del país",0,"Nombre: Sin Subprograma\nDescripción: Sin subprograma","Nombre: Asesoría técnica en procesos de capacitación\nDescripción: Entidades e instituciones públicas, y Sistema de Consejos de Desarrollo, con asesoría técnica en procesos de planificación y programación, con orientación a resultados","Número de Asesoría técnica en procesos de capacitación, al finalizar el año 2026."]
[108,"Guatemala Urbana y Rural","ODS 11 Ciudades y comunidades sostenibles ","PND 10 Ordenamiento Territorial","MED 15 El 100% de los municipios cuentan con planes de ordenamiento territorial integral que se implementan satisfactoriamente",null,"Para el 2029, se ha incrementado el promedio nacional (1554)  de la Gestión Estratégica Municipal, en función de sus competencias (De categoría \"baja\" en 2021 a categoría \"media baja\" en 2029,  considerando la Medición del Desempeño de la Gestión Municipal))","Para el 2032, se ha incrementado en XX m2 las áreas de parques, jardínes y lugares de recreación  gestionadas para su mejora, el municipio XXX\n(De un XXX en el año XXX a XXX en el año 2032)","Para el 2029, se ha incrementado en XX m2 las áreas de parques, jardínes y lugares de recreación  gestionadas para su mejora, en el municipio (De un XXX en el año XXX a XXX en el año 2029)","La Infraestructura Económica para el Buen Vivir","Areas de espacio público gestionadas","m2","X",null,"MUNICIPALIDAD ","MUNICIPALIDAD ","MUNICIPALIDAD ",19,"Movilidad urbana y espacios públicos",2,"Desarrollo Municipal y Ordenamiento Territorial","Areas de espacio público gestionadas","Número de metros cuadrados gestionados para áreas de espacio público."]
[109,"Riqueza para todas y todos","ODS 8 Trabajo decente y crecimiento económico","PND 5 Empleo e inversión","MED 6 En 2032, el crecimiento del PIB real ha sido paulatino y sostenido, hasta alcanzar una tasa no menor del 54%: a) Rango entre 34 y 44% en el quinquenio 2015-2020 b) Rango entre 44 y 54% en el quinquenio 2021-2025 c) No menor del 54% en los siguientes años, hasta llegar a 2032",null,"Para el 2032, se ha disminuido la pobreza y pobreza  extrema con énfasis en los departamentos priorizados en 20 puntos porcentuales (de 2014 a 2032 en: pobreza extrema*/  pobreza**;Alta Verapaz:  536  a 268  * /2950   a  1475 ; Sololá: 399  a 1995 *  /  4110  a  2055;  Totonicapán:   41 1  a 2055 *  / 3640  a 182; Huehuetenango:  286 a 143    *  /     4520   a   226; Quiché   418 a 209   *  /  3290  a   1640; Chiquimula  411  a 2055  * / 2950  a   1475)","Para el año 2032, se ha incrementado la formalidad del empleo XX%, en el municipio XXX (De XX% en el año XXX a XX% en el año 2032)","Para el año 2029, se ha incrementado en XX% el número de personas atendidas en eventos y/o actividades de promoción de empleo  en el municipio XXX \n(De un XX% en el año XXX a un XX% en el año 2029)","Desarrollo social","Empresario de Micro, pequeña y mediana empresa beneficiados con servicios  financieros a nivel departamental","Persona",null,"X","MINECO","MINECO","Municipalidad",14," DESARROLLO DE LA MICRO, PEQUEÑA Y MEDIANA EMPRESA ",null,null,"Empresario de Micro, pequeña y mediana empresa beneficiados con servicios  financieros a nivel departamental","Número de empresarios de Micro, pequeña y mediana empresa beneficiados con servicios  financieros a nivel departamental, al finalizar el año 2026."]